{"text_format":"2","workbook":"xlsx","n_sheets":1,"sheets":["Orçamento Sintético"],"not_rendered":{"charts":0,"images":1,"macros":0,"external_links":0,"defined_names":0,"comments":0,"pivot_tables":0},"unopened":[],"bounds":{"document_bytes":16777216,"sheet_cells":100000,"run_cost":"one","rows_first":2000,"rows_last":500,"rows_between":2000,"halvings":0,"cell_chars":16384,"cell_head_chars":4096},"cells_cut":0,"cells_raw":0,"read":"whole","date_system":"1900"}

{"sheet":"Orçamento Sintético","index":0,"n_rows":435,"n_cols":10,"rows_kept":435,"cut":false,"hidden":false,"merged":[[434,0,434,2],[434,5,434,6],[434,7,434,9],[436,0,436,9],[3,0,3,9],[432,0,432,2],[432,5,432,6],[432,7,432,9],[433,0,433,2],[433,5,433,6],[433,7,433,9],[0,4,0,5],[0,6,0,7],[0,8,0,9],[2,4,2,5],[2,8,2,9],[1,6,2,6],[1,7,2,7]]}
[null,null,null,"Obra","Bancos",null,"B.D.I. - Serviços e Fornec.",null,"Encargos Sociais"]
[{"$nulls":6},0.22120000000000001,0.14019999999999999]
[null,null,null,"REFORMA DO CERAQUA - SEM DESONERAÇÃO","SINAPI - 07/2023 - Alagoas\nORSE - 06/2023 - Sergipe\n",null,null,null,"Não Desonerado: \nHorista: 114,90%\nMensalista: 70,23%"]
["Orçamento Sintético"]
["Item","Código","Banco","Descrição","Und","Quant.","Valor Unit","Valor Unit com BDI","Total","Peso (%)"]
[" 1 ",null,null,"INSTALAÇÕES PRELIMINARES E CANTEIRO DE OBRAS",{"$nulls":4},{"$f":"SUM(I7,I9,I11)","v":0},{"$f":"I6/$H$435","v":{"$error":"#DIV/0!"}}]
[" 1.1 ",null,null,"ADMINISTRAÇÃO LOCAL E MANUTENÇÃO DO CANTEIRO DE OBRAS",{"$nulls":4},{"$f":"SUM(I8)","v":0},{"$f":"I7/$H$435","v":{"$error":"#DIV/0!"}}]
[" 1.1.1 "," 3 ","Próprio","Administração local e manutenção do canteiro de obras","mês",12,null,{"$f":"TRUNC(G8*(1+$G$2),2)","v":0},{"$f":"TRUNC(F8*H8,2)","v":0},{"$f":"I8/$H$435","v":{"$error":"#DIV/0!"}}]
[" 1.2 ",null,null,"IMPLANTAÇÃO DO CANTEIRO",{"$nulls":4},{"$f":"SUM(I10)","v":0},{"$error":"#DIV/0!"}]
[" 1.2.1 "," 103689 ","SINAPI","FORNECIMENTO E INSTALAÇÃO DE PLACA DE OBRA COM CHAPA GALVANIZADA E ESTRUTURA DE MADEIRA. AF_03/2022_PS","m²",4.5,null,{"$f":"TRUNC(G10*(1+$G$2),2)","v":0},{"$f":"TRUNC(F10*H10,2)","v":0},{"$error":"#DIV/0!"}]
[" 1.3 ",null,null,"MOBILIZAÇÃO E DESMOBILIZAÇÃO",{"$nulls":4},{"$f":"SUM(I12)","v":0},{"$error":"#DIV/0!"}]
[" 1.3.1 "," 5824 ","SINAPI","CAMINHÃO TOCO, PBT 16.000 KG, CARGA ÚTIL MÁX. 10.685 KG, DIST. ENTRE EIXOS 4,8 M, POTÊNCIA 189 CV, INCLUSIVE CARROCERIA FIXA ABERTA DE MADEIRA P/ TRANSPORTE GERAL DE CARGA SECA, DIMEN. APROX. 2,5 X 7,00 X 0,50 M - CHP DIURNO. AF_06/2014","CHP",24,null,{"$f":"TRUNC(G12*(1+$G$2),2)","v":0},{"$f":"TRUNC(F12*H12,2)","v":0},{"$error":"#DIV/0!"}]
[" 2 ",null,null,"DEMOLIÇÃO DE ESCRITORIO",{"$nulls":4},{"$f":"SUM(I14:I21)","v":0},{"$error":"#DIV/0!"}]
[" 2.1 "," 100981 ","SINAPI","CARGA, MANOBRA E DESCARGA DE ENTULHO EM CAMINHÃO BASCULANTE 6 M³ - CARGA COM ESCAVADEIRA HIDRÁULICA  (CAÇAMBA DE 0,80 M³ / 111 HP) E DESCARGA LIVRE (UNIDADE: M3). AF_07/2020","m³",74.407499999999999,null,{"$f":"TRUNC(G14*(1+$G$2),2)","v":0},{"$f":"TRUNC(F14*H14,2)","v":0},{"$error":"#DIV/0!"}]
[" 2.2 "," 97914 ","SINAPI","TRANSPORTE COM CAMINHÃO BASCULANTE DE 6 M³, EM VIA URBANA PAVIMENTADA, DMT ATÉ 30 KM (UNIDADE: M3XKM). AF_07/2020","M3XKM",74.407499999999999,null,{"$f":"TRUNC(G15*(1+$G$2),2)","v":0},{"$f":"TRUNC(F15*H15,2)","v":0},{"$error":"#DIV/0!"}]
[" 2.3 "," 97625 ","SINAPI","DEMOLIÇÃO DE ALVENARIA PARA QUALQUER TIPO DE BLOCO, DE FORMA MECANIZADA, SEM REAPROVEITAMENTO. AF_12/2017","m³",42.277500000000003,null,0,0,{"$error":"#DIV/0!"}]
[" 2.4 "," 97629 ","SINAPI","DEMOLIÇÃO DE LAJES, DE FORMA MECANIZADA COM MARTELETE, SEM REAPROVEITAMENTO. AF_12/2017","m³",28.35,null,0,0,{"$error":"#DIV/0!"}]
[" 2.5 "," 97634 ","SINAPI","DEMOLIÇÃO DE REVESTIMENTO CERÂMICO, DE FORMA MECANIZADA COM MARTELETE, SEM REAPROVEITAMENTO. AF_12/2017","m²",189,null,0,0,{"$error":"#DIV/0!"}]
[" 2.6 "," 4943 ","ORSE","Remoção de telhamento com telhas onduladas fibrocimento ou aluminio","m²",189,null,0,0,{"$error":"#DIV/0!"}]
[" 2.7 "," 97644 ","SINAPI","REMOÇÃO DE PORTAS, DE FORMA MANUAL, SEM REAPROVEITAMENTO. AF_12/2017","m²",13.44,null,0,0,{"$error":"#DIV/0!"}]
[" 2.8 "," 97645 ","SINAPI","REMOÇÃO DE JANELAS, DE FORMA MANUAL, SEM REAPROVEITAMENTO. AF_12/2017","m²",15,null,0,0,{"$error":"#DIV/0!"}]
[" 3 ",null,null,"ESCRITÓRIO DE APOIO",{"$nulls":4},{"$f":"SUM(I23,I26,I28,I35,I45,I49,I54,I59,I66,I89,I109,I132,I136,I154,I157,I163,I174,I182,I186)","v":0},{"$error":"#DIV/0!"}]
[" 3.1 ",null,null,"SERVIÇOS PRELIMINARES",{"$nulls":4},{"$f":"SUM(I24:I25)","v":0},{"$error":"#DIV/0!"}]
[" 3.1.1 "," 98524 ","SINAPI","LIMPEZA MANUAL DE VEGETAÇÃO EM TERRENO COM ENXADA.AF_05/2018","m²",27.121500000000001,null,{"$f":"TRUNC(G24*(1+$G$2),2)","v":0},{"$f":"TRUNC(F24*H24,2)","v":0},{"$error":"#DIV/0!"}]
[" 3.1.2 "," 99059 ","SINAPI","LOCACAO CONVENCIONAL DE OBRA, UTILIZANDO GABARITO DE TÁBUAS CORRIDAS PONTALETADAS A CADA 2,00M -  2 UTILIZAÇÕES. AF_10/2018","M",52.25,null,0,0,{"$error":"#DIV/0!"}]
[" 3.2 ",null,null,"MOVIMENTO DE TERRA",{"$nulls":4},{"$f":"SUM(I27)","v":0},{"$error":"#DIV/0!"}]
[" 3.2.1 "," 96526 ","SINAPI","ESCAVAÇÃO MANUAL DE VALA PARA VIGA BALDRAME (SEM ESCAVAÇÃO PARA COLOCAÇÃO DE FÔRMAS). AF_06/2017","m³",3.1739999999999999,null,0,0,{"$error":"#DIV/0!"}]
[" 3.3 ",null,null,"FUNDAÇÕES",{"$nulls":4},{"$f":"SUM(I29:I34)","v":0},{"$error":"#DIV/0!"}]
[" 3.3.2 "," 96545 ","SINAPI","ARMAÇÃO DE BLOCO, VIGA BALDRAME OU SAPATA UTILIZANDO AÇO CA-50 DE 8 MM - MONTAGEM. AF_06/2017","KG",15,null,0,0,{"$error":"#DIV/0!"}]
[" 3.3.3 "," 96544 ","SINAPI","ARMAÇÃO DE BLOCO, VIGA BALDRAME OU SAPATA UTILIZANDO AÇO CA-50 DE 6,3 MM - MONTAGEM. AF_06/2017","KG",71,null,0,0,{"$error":"#DIV/0!"}]
[" 3.3.4 "," 94965 ","SINAPI","CONCRETO FCK = 25MPA, TRAÇO 1:2,3:2,7 (EM MASSA SECA DE CIMENTO/ AREIA MÉDIA/ BRITA 1) - PREPARO MECÂNICO COM BETONEIRA 400 L. AF_05/2021","m³",2.76,null,0,0,{"$error":"#DIV/0!"}]
[" 3.3.5 "," 103670 ","SINAPI","LANÇAMENTO COM USO DE BALDES, ADENSAMENTO E ACABAMENTO DE CONCRETO EM ESTRUTURAS. AF_02/2022","m³",3.62,null,0,0,{"$error":"#DIV/0!"}]
[" 3.3.6 "," 101165 ","SINAPI","ALVENARIA DE EMBASAMENTO COM BLOCO ESTRUTURAL DE CONCRETO, DE 14X19X29CM E ARGAMASSA DE ASSENTAMENTO COM PREPARO EM BETONEIRA. AF_05/2020","m³",1.4,null,0,0,{"$error":"#DIV/0!"}]
[" 3.3.7 "," 96620 ","SINAPI","LASTRO DE CONCRETO MAGRO, APLICADO EM PISOS, LAJES SOBRE SOLO OU RADIERS. AF_08/2017","m³",2.25,null,0,0,{"$error":"#DIV/0!"}]
[" 3.4 ",null,null,"ESTRUTURAS",{"$nulls":4},{"$f":"SUM(I36:I44)","v":0},{"$error":"#DIV/0!"}]
[" 3.4.1 "," 92264 ","SINAPI","FABRICAÇÃO DE FÔRMA PARA PILARES E ESTRUTURAS SIMILARES, EM CHAPA DE MADEIRA COMPENSADA PLASTIFICADA, E = 18 MM. AF_09/2020","m²",20.52,null,0,0,{"$error":"#DIV/0!"}]
[" 3.4.2 "," 92266 ","SINAPI","FABRICAÇÃO DE FÔRMA PARA VIGAS, EM CHAPA DE MADEIRA COMPENSADA PLASTIFICADA, E = 18 MM. AF_09/2020","m²",19.25,null,0,0,{"$error":"#DIV/0!"}]
[" 3.4.3 "," 92268 ","SINAPI","FABRICAÇÃO DE FÔRMA PARA LAJES, EM CHAPA DE MADEIRA COMPENSADA PLASTIFICADA, E = 18 MM. AF_09/2020","m²",12.54,null,0,0,{"$error":"#DIV/0!"}]
[" 3.4.4 "," 92762 ","SINAPI","ARMAÇÃO DE PILAR OU VIGA DE ESTRUTURA CONVENCIONAL DE CONCRETO ARMADO UTILIZANDO AÇO CA-50 DE 10,0 MM - MONTAGEM. AF_06/2022","KG",135,null,0,0,{"$error":"#DIV/0!"}]
[" 3.4.5 "," 92761 ","SINAPI","ARMAÇÃO DE PILAR OU VIGA DE ESTRUTURA CONVENCIONAL DE CONCRETO ARMADO UTILIZANDO AÇO CA-50 DE 8,0 MM - MONTAGEM. AF_06/2022","KG",47,null,0,0,{"$error":"#DIV/0!"}]
[" 3.4.6 "," 92759 ","SINAPI","ARMAÇÃO DE PILAR OU VIGA DE ESTRUTURA CONVENCIONAL DE CONCRETO ARMADO UTILIZANDO AÇO CA-60 DE 5,0 MM - MONTAGEM. AF_06/2022","KG",56,null,0,0,{"$error":"#DIV/0!"}]
[" 3.4.7 "," 92769 ","SINAPI","ARMAÇÃO DE LAJE DE ESTRUTURA CONVENCIONAL DE CONCRETO ARMADO UTILIZANDO AÇO CA-50 DE 6,3 MM - MONTAGEM. AF_06/2022","KG",54,null,0,0,{"$error":"#DIV/0!"}]
[" 3.4.8 "," 94971 ","SINAPI","CONCRETO FCK = 25MPA, TRAÇO 1:2,3:2,7 (EM MASSA SECA DE CIMENTO/ AREIA MÉDIA/ BRITA 1) - PREPARO MECÂNICO COM BETONEIRA 600 L. AF_05/2021","m³",3.97,null,0,0,{"$error":"#DIV/0!"}]
[" 3.4.9 "," 103670 ","SINAPI","LANÇAMENTO COM USO DE BALDES, ADENSAMENTO E ACABAMENTO DE CONCRETO EM ESTRUTURAS. AF_02/2022","m³",3.97,null,0,0,{"$error":"#DIV/0!"}]
[" 3.5 ",null,null,"LAJE PRÉ-MOLDADA",{"$nulls":4},{"$f":"SUM(I46:I48)","v":0},{"$error":"#DIV/0!"}]
[" 3.5.1 "," 101963 ","SINAPI","LAJE PRÉ-MOLDADA UNIDIRECIONAL, BIAPOIADA, PARA PISO, ENCHIMENTO EM CERÂMICA, VIGOTA CONVENCIONAL, ALTURA TOTAL DA LAJE (ENCHIMENTO+CAPA) = (8+4). AF_11/2020_PA","m²",10.89,null,0,0,{"$error":"#DIV/0!"}]
[" 3.5.2 "," 92769 ","SINAPI","ARMAÇÃO DE LAJE DE ESTRUTURA CONVENCIONAL DE CONCRETO ARMADO UTILIZANDO AÇO CA-50 DE 6,3 MM - MONTAGEM. AF_06/2022","KG",6.37,null,0,0,{"$error":"#DIV/0!"}]
[" 3.5.3 "," 97088 ","SINAPI","ARMAÇÃO PARA EXECUÇÃO DE RADIER, PISO DE CONCRETO OU LAJE SOBRE SOLO, COM USO DE TELA Q-92. AF_09/2021","KG",2,null,0,0,{"$error":"#DIV/0!"}]
[" 3.6 ",null,null,"ELEVAÇÕES",{"$nulls":4},{"$f":"SUM(I50:I53)","v":0},{"$error":"#DIV/0!"}]
[" 3.6.1 "," 103328 ","SINAPI","ALVENARIA DE VEDAÇÃO DE BLOCOS CERÂMICOS FURADOS NA HORIZONTAL DE 9X19X19 CM (ESPESSURA 9 CM) E ARGAMASSA DE ASSENTAMENTO COM PREPARO EM BETONEIRA. AF_12/2021","m²",59.8,null,0,0,{"$error":"#DIV/0!"}]
[" 3.6.2 "," 103332 ","SINAPI","ALVENARIA DE VEDAÇÃO DE BLOCOS CERÂMICOS FURADOS NA HORIZONTAL DE 9X14X19 CM (ESPESSURA 9 CM) E ARGAMASSA DE ASSENTAMENTO COM PREPARO EM BETONEIRA. AF_12/2021","m²",27.53,null,0,0,{"$error":"#DIV/0!"}]
[" 3.6.3 "," 101161 ","SINAPI","ALVENARIA DE VEDAÇÃO COM ELEMENTO VAZADO DE CONCRETO (COBOGÓ) DE 7X50X50CM E ARGAMASSA DE ASSENTAMENTO COM PREPARO EM BETONEIRA. AF_05/2020","m²",2.8,null,0,0,{"$error":"#DIV/0!"}]
[" 3.6.4 "," 93184 ","SINAPI","VERGA PRÉ-MOLDADA PARA PORTAS COM ATÉ 1,5 M DE VÃO. AF_03/2016","M",5.8,null,0,0,{"$error":"#DIV/0!"}]
[" 3.7 ",null,null,"COBERTURA",{"$nulls":4},{"$f":"SUM(I55:I58)","v":0},{"$error":"#DIV/0!"}]
[" 3.7.1 "," 92543 ","SINAPI","TRAMA DE MADEIRA COMPOSTA POR TERÇAS PARA TELHADOS DE ATÉ 2 ÁGUAS PARA TELHA ONDULADA DE FIBROCIMENTO, METÁLICA, PLÁSTICA OU TERMOACÚSTICA, INCLUSO TRANSPORTE VERTICAL. AF_07/2019","m²",20.25,null,0,0,{"$error":"#DIV/0!"}]
[" 3.7.2 "," 94207 ","SINAPI","TELHAMENTO COM TELHA ONDULADA DE FIBROCIMENTO E = 6 MM, COM RECOBRIMENTO LATERAL DE 1/4 DE ONDA PARA TELHADO COM INCLINAÇÃO MAIOR QUE 10°, COM ATÉ 2 ÁGUAS, INCLUSO IÇAMENTO. AF_07/2019","m²",20.25,null,0,0,{"$error":"#DIV/0!"}]
[" 3.7.3 "," 5083 ","ORSE","Rufo para telha de fibrocimento ondulada","m",16.97,null,0,0,{"$error":"#DIV/0!"}]
[" 3.7.4 "," 94227 ","SINAPI","CALHA EM CHAPA DE AÇO GALVANIZADO NÚMERO 24, DESENVOLVIMENTO DE 33 CM, INCLUSO TRANSPORTE VERTICAL. AF_07/2019","M",5.85,null,0,0,{"$error":"#DIV/0!"}]
[" 3.8 ",null,null,"IMPERMEABILIZAÇÕES",{"$nulls":4},{"$f":"SUM(I60,I62)","v":0},{"$error":"#DIV/0!"}]
[" 3.8.1 ",null,null,"IMPERMEABILIZAÇÃO DAS FUNDAÇÕES",{"$nulls":4},{"$f":"SUM(I61)","v":0},{"$error":"#DIV/0!"}]
[" 3.8.1.1 "," 98557 ","SINAPI","IMPERMEABILIZAÇÃO DE SUPERFÍCIE COM EMULSÃO ASFÁLTICA, 2 DEMÃOS AF_06/2018","m²",27.84,null,{"$f":"TRUNC(G61*(1+$G$2),2)","v":0},{"$f":"TRUNC(F61*H61,2)","v":0},{"$error":"#DIV/0!"}]
[" 3.8.2 ",null,null,"IMPERMEABILIZAÇÃO DE LAJES",{"$nulls":4},{"$f":"SUM(I63:I65)","v":0},{"$error":"#DIV/0!"}]
[" 3.8.2.1 "," 87735 ","SINAPI","CONTRAPISO EM ARGAMASSA TRAÇO 1:4 (CIMENTO E AREIA), PREPARO MECÂNICO COM BETONEIRA 400 L, APLICADO EM ÁREAS MOLHADAS SOBRE LAJE, ADERIDO, ACABAMENTO NÃO REFORÇADO, ESPESSURA 2CM. AF_07/2021","m²",5.16,null,0,0,{"$error":"#DIV/0!"}]
[" 3.8.2.2 "," 98546 ","SINAPI","IMPERMEABILIZAÇÃO DE SUPERFÍCIE COM MANTA ASFÁLTICA, UMA CAMADA, INCLUSIVE APLICAÇÃO DE PRIMER ASFÁLTICO, E=3MM. AF_06/2018","m²",5.16,null,0,0,{"$error":"#DIV/0!"}]
[" 3.8.2.3 "," 98563 ","SINAPI","PROTEÇÃO MECÂNICA DE SUPERFÍCIE HORIZONTAL COM ARGAMASSA DE CIMENTO E AREIA, TRAÇO 1:3, E=2CM. AF_06/2018","m²",5.16,null,0,0,{"$error":"#DIV/0!"}]
[" 3.9 ",null,null,"INSTALAÇÕES ELÉTRICAS",{"$nulls":4},{"$f":"SUM(I67:I88)","v":0},{"$error":"#DIV/0!"}]
[" 3.9.1 "," 91846 ","SINAPI","ELETRODUTO FLEXÍVEL CORRUGADO, PVC, DN 32 MM (1\"), PARA CIRCUITOS TERMINAIS, INSTALADO EM LAJE - FORNECIMENTO E INSTALAÇÃO. AF_03/2023","M",42.25,null,0,0,{"$error":"#DIV/0!"}]
[" 3.9.2 "," 91925 ","SINAPI","CABO DE COBRE FLEXÍVEL ISOLADO, 1,5 MM², ANTI-CHAMA 0,6/1,0 KV, PARA CIRCUITOS TERMINAIS - FORNECIMENTO E INSTALAÇÃO. AF_03/2023","M",37.85,null,0,0,{"$error":"#DIV/0!"}]
[" 3.9.3 "," 91927 ","SINAPI","CABO DE COBRE FLEXÍVEL ISOLADO, 2,5 MM², ANTI-CHAMA 0,6/1,0 KV, PARA CIRCUITOS TERMINAIS - FORNECIMENTO E INSTALAÇÃO. AF_03/2023","M",46.86,null,0,0,{"$error":"#DIV/0!"}]
[" 3.9.4 "," 91929 ","SINAPI","CABO DE COBRE FLEXÍVEL ISOLADO, 4 MM², ANTI-CHAMA 0,6/1,0 KV, PARA CIRCUITOS TERMINAIS - FORNECIMENTO E INSTALAÇÃO. AF_03/2023","M",64.41,null,0,0,{"$error":"#DIV/0!"}]
[" 3.9.5 "," 93653 ","SINAPI","DISJUNTOR MONOPOLAR TIPO DIN, CORRENTE NOMINAL DE 10A - FORNECIMENTO E INSTALAÇÃO. AF_10/2020","UN",3,null,0,0,{"$error":"#DIV/0!"}]
[" 3.9.6 "," 93661 ","SINAPI","DISJUNTOR BIPOLAR TIPO DIN, CORRENTE NOMINAL DE 16A - FORNECIMENTO E INSTALAÇÃO. AF_10/2020","UN",1,null,0,0,{"$f":"I72/$H$435","v":{"$error":"#DIV/0!"}}]
[" 3.9.7 "," 93663 ","SINAPI","DISJUNTOR BIPOLAR TIPO DIN, CORRENTE NOMINAL DE 25A - FORNECIMENTO E INSTALAÇÃO. AF_10/2020","UN",1,null,0,0,{"$error":"#DIV/0!"}]
[" 3.9.8 "," 7996 ","ORSE","Disjuntor bipolar DR 25 A  - Dispositivo residual diferencial, tipo AC, 30MA, ref.5SM1 312-OMB, Siemens ou similar","un",5,null,0,0,{"$error":"#DIV/0!"}]
[" 3.9.9 "," 91936 ","SINAPI","CAIXA OCTOGONAL 4\" X 4\", PVC, INSTALADA EM LAJE - FORNECIMENTO E INSTALAÇÃO. AF_03/2023","UN",3,null,0,0,{"$error":"#DIV/0!"}]
[" 3.9.10 "," 91941 ","SINAPI","CAIXA RETANGULAR 4\" X 2\" BAIXA (0,30 M DO PISO), PVC, INSTALADA EM PAREDE - FORNECIMENTO E INSTALAÇÃO. AF_03/2023","UN",3,null,0,0,{"$error":"#DIV/0!"}]
[" 3.9.11 "," 91940 ","SINAPI","CAIXA RETANGULAR 4\" X 2\" MÉDIA (1,30 M DO PISO), PVC, INSTALADA EM PAREDE - FORNECIMENTO E INSTALAÇÃO. AF_03/2023","UN",3,null,0,0,{"$error":"#DIV/0!"}]
[" 3.9.12 "," 91939 ","SINAPI","CAIXA RETANGULAR 4\" X 2\" ALTA (2,00 M DO PISO), PVC, INSTALADA EM PAREDE - FORNECIMENTO E INSTALAÇÃO. AF_03/2023","UN",1,null,0,0,{"$error":"#DIV/0!"}]
[" 3.9.13 "," 92008 ","SINAPI","TOMADA BAIXA DE EMBUTIR (2 MÓDULOS), 2P+T 10 A, INCLUINDO SUPORTE E PLACA - FORNECIMENTO E INSTALAÇÃO. AF_03/2023","UN",3,null,0,0,{"$error":"#DIV/0!"}]
[" 3.9.14 "," 91993 ","SINAPI","TOMADA ALTA DE EMBUTIR (1 MÓDULO), 2P+T 20 A, INCLUINDO SUPORTE E PLACA - FORNECIMENTO E INSTALAÇÃO. AF_03/2023","UN",1,null,0,0,{"$error":"#DIV/0!"}]
[" 3.9.15 "," 91953 ","SINAPI","INTERRUPTOR SIMPLES (1 MÓDULO), 10A/250V, INCLUINDO SUPORTE E PLACA - FORNECIMENTO E INSTALAÇÃO. AF_03/2023","UN",3,null,0,0,{"$error":"#DIV/0!"}]
[" 3.9.16 "," 97585 ","SINAPI","LUMINÁRIA TIPO CALHA, DE SOBREPOR, COM 2 LÂMPADAS TUBULARES FLUORESCENTES DE 18 W, COM REATOR DE PARTIDA RÁPIDA - FORNECIMENTO E INSTALAÇÃO. AF_02/2020","UN",2,null,0,0,{"$error":"#DIV/0!"}]
[" 3.9.17 "," 97589 ","SINAPI","LUMINÁRIA TIPO PLAFON EM PLÁSTICO, DE SOBREPOR, COM 1 LÂMPADA FLUORESCENTE DE 15 W, SEM REATOR - FORNECIMENTO E INSTALAÇÃO. AF_02/2020","UN",1,null,0,0,{"$error":"#DIV/0!"}]
[" 3.9.18 "," 12222 ","ORSE","Quadro de distribuição de embutir, em chapa de aço, para até 08 disjuntores, com barramento, padrão DIN, exclusive disjuntores","un",1,null,0,0,{"$error":"#DIV/0!"}]
[" 3.9.19 "," 97892 ","SINAPI","CAIXA ENTERRADA ELÉTRICA RETANGULAR, EM ALVENARIA COM BLOCOS DE CONCRETO, FUNDO COM BRITA, DIMENSÕES INTERNAS: 0,6X0,6X0,6 M. AF_12/2020","UN",1,null,0,0,{"$error":"#DIV/0!"}]
[" 3.9.20 "," 96985 ","SINAPI","HASTE DE ATERRAMENTO 5/8  PARA SPDA - FORNECIMENTO E INSTALAÇÃO. AF_12/2017","UN",1,null,0,0,{"$error":"#DIV/0!"}]
[" 3.9.21 "," 681 ","ORSE","Conector para haste de aterramento 5/8\" - fornecimento e assentamento - Rev 02 (10/2021)","un",1,null,0,0,{"$error":"#DIV/0!"}]
[" 3.9.22 "," 12370 ","ORSE","Cabo de cobre nú 10 mm2 - fornecimento e assentamento (10,85m/kg)","kg",1,null,0,0,{"$error":"#DIV/0!"}]
[" 3.10 ",null,null,"INSTALAÇÕES HIDRÁULICAS",{"$nulls":4},{"$f":"SUM(I90:I108)","v":0},{"$error":"#DIV/0!"}]
[" 3.10.1 "," 89401 ","SINAPI","TUBO, PVC, SOLDÁVEL, DN 20MM, INSTALADO EM RAMAL DE DISTRIBUIÇÃO DE ÁGUA - FORNECIMENTO E INSTALAÇÃO. AF_06/2022","M",15.05,null,0,0,{"$error":"#DIV/0!"}]
[" 3.10.2 "," 89356 ","SINAPI","TUBO, PVC, SOLDÁVEL, DN 25MM, INSTALADO EM RAMAL OU SUB-RAMAL DE ÁGUA - FORNECIMENTO E INSTALAÇÃO. AF_06/2022","M",5.8,null,0,0,{"$error":"#DIV/0!"}]
[" 3.10.3 "," 89446 ","SINAPI","TUBO, PVC, SOLDÁVEL, DN 25MM, INSTALADO EM PRUMADA DE ÁGUA - FORNECIMENTO E INSTALAÇÃO. AF_06/2022","M",1.1499999999999999,null,0,0,{"$error":"#DIV/0!"}]
[" 3.10.4 "," 89405 ","SINAPI","JOELHO 45 GRAUS, PVC, SOLDÁVEL, DN 20MM, INSTALADO EM RAMAL DE DISTRIBUIÇÃO DE ÁGUA - FORNECIMENTO E INSTALAÇÃO. AF_06/2022","UN",1,null,0,0,{"$error":"#DIV/0!"}]
[" 3.10.5 "," 89404 ","SINAPI","JOELHO 90 GRAUS, PVC, SOLDÁVEL, DN 20MM, INSTALADO EM RAMAL DE DISTRIBUIÇÃO DE ÁGUA - FORNECIMENTO E INSTALAÇÃO. AF_06/2022","UN",4,null,0,0,{"$error":"#DIV/0!"}]
[" 3.10.6 "," 89363 ","SINAPI","JOELHO 45 GRAUS, PVC, SOLDÁVEL, DN 25MM, INSTALADO EM RAMAL OU SUB-RAMAL DE ÁGUA - FORNECIMENTO E INSTALAÇÃO. AF_06/2022","UN",1,null,0,0,{"$error":"#DIV/0!"}]
[" 3.10.7 "," 89362 ","SINAPI","JOELHO 90 GRAUS, PVC, SOLDÁVEL, DN 25MM, INSTALADO EM RAMAL OU SUB-RAMAL DE ÁGUA - FORNECIMENTO E INSTALAÇÃO. AF_06/2022","UN",5,null,0,0,{"$error":"#DIV/0!"}]
[" 3.10.8 "," 89493 ","SINAPI","JOELHO 45 GRAUS, PVC, SOLDÁVEL, DN 32MM, INSTALADO EM PRUMADA DE ÁGUA - FORNECIMENTO E INSTALAÇÃO. AF_06/2022","UN",1,null,0,0,{"$error":"#DIV/0!"}]
[" 3.10.9 "," 89395 ","SINAPI","TE, PVC, SOLDÁVEL, DN 25MM, INSTALADO EM RAMAL OU SUB-RAMAL DE ÁGUA - FORNECIMENTO E INSTALAÇÃO. AF_06/2022","UN",2,null,0,0,{"$error":"#DIV/0!"}]
[" 3.10.10 "," 89353 ","SINAPI","REGISTRO DE GAVETA BRUTO, LATÃO, ROSCÁVEL, 3/4\" - FORNECIMENTO E INSTALAÇÃO. AF_08/2021","UN",1,null,0,0,{"$error":"#DIV/0!"}]
[" 3.10.11 "," 94495 ","SINAPI","REGISTRO DE GAVETA BRUTO, LATÃO, ROSCÁVEL, 1\" - FORNECIMENTO E INSTALAÇÃO. AF_08/2021","UN",1,null,0,0,{"$error":"#DIV/0!"}]
[" 3.10.12 "," 89374 ","SINAPI","LUVA COM BUCHA DE LATÃO, PVC, SOLDÁVEL, DN 20MM X 1/2\", INSTALADO EM RAMAL OU SUB-RAMAL DE ÁGUA - FORNECIMENTO E INSTALAÇÃO. AF_06/2022","UN",3,null,0,0,{"$error":"#DIV/0!"}]
[" 3.10.13 "," 89376 ","SINAPI","ADAPTADOR CURTO COM BOLSA E ROSCA PARA REGISTRO, PVC, SOLDÁVEL, DN 20MM X 1/2 , INSTALADO EM RAMAL OU SUB-RAMAL DE ÁGUA - FORNECIMENTO E INSTALAÇÃO. AF_06/2022","UN",2,null,0,0,{"$error":"#DIV/0!"}]
[" 3.10.14 "," 89383 ","SINAPI","ADAPTADOR CURTO COM BOLSA E ROSCA PARA REGISTRO, PVC, SOLDÁVEL, DN 25MM X 3/4 , INSTALADO EM RAMAL OU SUB-RAMAL DE ÁGUA - FORNECIMENTO E INSTALAÇÃO. AF_06/2022","UN",2,null,0,0,{"$error":"#DIV/0!"}]
[" 3.10.16 "," 94783 ","SINAPI","ADAPTADOR COM FLANGE E ANEL DE VEDAÇÃO, PVC, SOLDÁVEL, DN  20 MM X 1/2 , INSTALADO EM RESERVAÇÃO DE ÁGUA DE EDIFICAÇÃO QUE POSSUA RESERVATÓRIO DE FIBRA/FIBROCIMENTO   FORNECIMENTO E INSTALAÇÃO. AF_06/2016","UN",1,null,0,0,{"$error":"#DIV/0!"}]
[" 3.10.17 "," 94703 ","SINAPI","ADAPTADOR COM FLANGE E ANEL DE VEDAÇÃO, PVC, SOLDÁVEL, DN  25 MM X 3/4 , INSTALADO EM RESERVAÇÃO DE ÁGUA DE EDIFICAÇÃO QUE POSSUA RESERVATÓRIO DE FIBRA/FIBROCIMENTO   FORNECIMENTO E INSTALAÇÃO. AF_06/2016","UN",1,null,0,0,{"$error":"#DIV/0!"}]
[" 3.10.18 "," 94704 ","SINAPI","ADAPTADOR COM FLANGE E ANEL DE VEDAÇÃO, PVC, SOLDÁVEL, DN 32 MM X 1 , INSTALADO EM RESERVAÇÃO DE ÁGUA DE EDIFICAÇÃO QUE POSSUA RESERVATÓRIO DE FIBRA/FIBROCIMENTO   FORNECIMENTO E INSTALAÇÃO. AF_06/2016","UN",1,null,0,0,{"$error":"#DIV/0!"}]
[" 3.10.19 "," 86913 ","SINAPI","TORNEIRA CROMADA 1/2\u0094 OU 3/4\u0094 PARA TANQUE, PADRÃO POPULAR - FORNECIMENTO E INSTALAÇÃO. AF_01/2020","UN",1,null,0,0,{"$error":"#DIV/0!"}]
[" 3.10.20 "," 102605 ","SINAPI","CAIXA D´ÁGUA EM POLIETILENO, 500 LITROS - FORNECIMENTO E INSTALAÇÃO. AF_06/2021","UN",1,null,0,0,{"$error":"#DIV/0!"}]
[" 3.11 ",null,null,"INSTALAÇÕES SANITÁRIAS",{"$nulls":4},{"$f":"SUM(I110:I131)","v":0},{"$error":"#DIV/0!"}]
[" 3.11.1 "," 89711 ","SINAPI","TUBO PVC, SERIE NORMAL, ESGOTO PREDIAL, DN 40 MM, FORNECIDO E INSTALADO EM RAMAL DE DESCARGA OU RAMAL DE ESGOTO SANITÁRIO. AF_08/2022","M",1.43,null,0,0,{"$error":"#DIV/0!"}]
[" 3.11.2 "," 89712 ","SINAPI","TUBO PVC, SERIE NORMAL, ESGOTO PREDIAL, DN 50 MM, FORNECIDO E INSTALADO EM RAMAL DE DESCARGA OU RAMAL DE ESGOTO SANITÁRIO. AF_08/2022","M",11.87,null,0,0,{"$error":"#DIV/0!"}]
[" 3.11.3 "," 89798 ","SINAPI","TUBO PVC, SERIE NORMAL, ESGOTO PREDIAL, DN 50 MM, FORNECIDO E INSTALADO EM PRUMADA DE ESGOTO SANITÁRIO OU VENTILAÇÃO. AF_08/2022","M",4.84,null,0,0,{"$error":"#DIV/0!"}]
[" 3.11.4 "," 89714 ","SINAPI","TUBO PVC, SERIE NORMAL, ESGOTO PREDIAL, DN 100 MM, FORNECIDO E INSTALADO EM RAMAL DE DESCARGA OU RAMAL DE ESGOTO SANITÁRIO. AF_08/2022","M",2.8,null,0,0,{"$error":"#DIV/0!"}]
[" 3.11.5 "," 89849 ","SINAPI","TUBO PVC, SERIE NORMAL, ESGOTO PREDIAL, DN 150 MM, FORNECIDO E INSTALADO EM SUBCOLETOR AÉREO DE ESGOTO SANITÁRIO. AF_08/2022","M",1,null,0,0,{"$error":"#DIV/0!"}]
[" 3.11.6 "," 89746 ","SINAPI","JOELHO 45 GRAUS, PVC, SERIE NORMAL, ESGOTO PREDIAL, DN 100 MM, JUNTA ELÁSTICA, FORNECIDO E INSTALADO EM RAMAL DE DESCARGA OU RAMAL DE ESGOTO SANITÁRIO. AF_08/2022","UN",1,null,0,0,{"$error":"#DIV/0!"}]
[" 3.11.7 "," 89724 ","SINAPI","JOELHO 90 GRAUS, PVC, SERIE NORMAL, ESGOTO PREDIAL, DN 40 MM, JUNTA SOLDÁVEL, FORNECIDO E INSTALADO EM RAMAL DE DESCARGA OU RAMAL DE ESGOTO SANITÁRIO. AF_08/2022","UN",2,null,0,0,{"$error":"#DIV/0!"}]
[" 3.11.8 "," 89731 ","SINAPI","JOELHO 90 GRAUS, PVC, SERIE NORMAL, ESGOTO PREDIAL, DN 50 MM, JUNTA ELÁSTICA, FORNECIDO E INSTALADO EM RAMAL DE DESCARGA OU RAMAL DE ESGOTO SANITÁRIO. AF_08/2022","UN",2,null,0,0,{"$error":"#DIV/0!"}]
[" 3.11.9 "," 89744 ","SINAPI","JOELHO 90 GRAUS, PVC, SERIE NORMAL, ESGOTO PREDIAL, DN 100 MM, JUNTA ELÁSTICA, FORNECIDO E INSTALADO EM RAMAL DE DESCARGA OU RAMAL DE ESGOTO SANITÁRIO. AF_08/2022","UN",1,null,0,0,{"$error":"#DIV/0!"}]
[" 3.11.10 "," 89735 ","SINAPI","CURVA LONGA 90 GRAUS, PVC, SERIE NORMAL, ESGOTO PREDIAL, DN 50 MM, JUNTA ELÁSTICA, FORNECIDO E INSTALADO EM RAMAL DE DESCARGA OU RAMAL DE ESGOTO SANITÁRIO. AF_08/2022","UN",1,null,0,0,{"$error":"#DIV/0!"}]
[" 3.11.11 "," 89784 ","SINAPI","TE, PVC, SERIE NORMAL, ESGOTO PREDIAL, DN 50 X 50 MM, JUNTA ELÁSTICA, FORNECIDO E INSTALADO EM RAMAL DE DESCARGA OU RAMAL DE ESGOTO SANITÁRIO. AF_08/2022","UN",2,null,0,0,{"$error":"#DIV/0!"}]
[" 3.11.12 "," 104357 ","SINAPI","CAP, PVC, SÉRIE NORMAL, ESGOTO PREDIAL, DN 100 MM, JUNTA ELÁSTICA, FORNECIDO E INSTALADO EM SUBCOLETOR AÉREO DE ESGOTO SANITÁRIO. AF_08/2022","UN",1,null,0,0,{"$error":"#DIV/0!"}]
[" 3.11.13 "," 89707 ","SINAPI","CAIXA SIFONADA, PVC, DN 100 X 100 X 50 MM, JUNTA ELÁSTICA, FORNECIDA E INSTALADA EM RAMAL DE DESCARGA OU EM RAMAL DE ESGOTO SANITÁRIO. AF_08/2022","UN",1,null,0,0,{"$error":"#DIV/0!"}]
[" 3.11.14 "," 97897 ","SINAPI","CAIXA ENTERRADA HIDRÁULICA RETANGULAR, EM CONCRETO PRÉ-MOLDADO, DIMENSÕES INTERNAS: 0,6X0,6X0,5 M. AF_12/2020","UN",1,null,0,0,{"$error":"#DIV/0!"}]
[" 3.11.15 "," 98052 ","SINAPI","TANQUE SÉPTICO CIRCULAR, EM CONCRETO PRÉ-MOLDADO, DIÂMETRO INTERNO = 1,10 M, ALTURA INTERNA = 2,50 M, VOLUME ÚTIL: 2138,2 L (PARA 5 CONTRIBUINTES). AF_12/2020_PA","UN",1,null,0,0,{"$error":"#DIV/0!"}]
[" 3.11.16 "," 00036365 ","SINAPI","TUBO COLETOR DE ESGOTO PVC, JEI, DN 100 MM (NBR  7362)","M",13,null,{"$f":"TRUNC(G125*(1+$H$2),2)","v":0},{"$f":"TRUNC(F125*H125,2)","v":0},{"$error":"#DIV/0!"}]
[" 3.11.17 "," 00003893 ","SINAPI","LUVA DE CORRER, PVC, DN 100 MM, PARA ESGOTO PREDIAL","UN",4,null,{"$f":"TRUNC(G126*(1+$H$2),2)","v":0},{"$f":"TRUNC(F126*H126,2)","v":0},{"$error":"#DIV/0!"}]
[" 3.11.18 "," 00038423 ","SINAPI","CURVA DE PVC, 90 GRAUS, SERIE R, DN 100 MM, PARA ESGOTO PREDIAL","UN",2,null,0,0,{"$error":"#DIV/0!"}]
[" 3.11.19 "," 5212 ","ORSE","Fornecimento de tê 90º de pvc, junta elástica, com bolsas, diam. =  100mm","un",2,null,{"$f":"TRUNC(G128*(1+$G$2),2)","v":0},0,{"$error":"#DIV/0!"}]
[" 3.11.20 "," 00003520 ","SINAPI","JOELHO PVC, SOLDAVEL, PB, 90 GRAUS, DN 100 MM, PARA ESGOTO PREDIAL","UN",2,null,0,0,{"$error":"#DIV/0!"}]
[" 3.11.21 "," 2661 ","ORSE","Assentamento de tubo de pvc junta elástica para esgotos sanitários, ponta e bolsa, diam. = 100mm","m",13,null,{"$f":"TRUNC(G130*(1+$G$2),2)","v":0},0,{"$error":"#DIV/0!"}]
[" 3.11.22 "," 1 ","Próprio","ADEQUAÇÃO DO PROJETO HIDROSSANITARIO","un",1,null,0,0,{"$error":"#DIV/0!"}]
[" 3.12 ",null,null,"INSTALAÇÕES DE ÁGUAS PLUVIAIS",{"$nulls":4},{"$f":"SUM(I133:I135)","v":0},{"$error":"#DIV/0!"}]
[" 3.12.1 "," 89578 ","SINAPI","TUBO PVC, SÉRIE R, ÁGUA PLUVIAL, DN 100 MM, FORNECIDO E INSTALADO EM CONDUTORES VERTICAIS DE ÁGUAS PLUVIAIS. AF_06/2022","M",6,null,0,0,{"$error":"#DIV/0!"}]
[" 3.12.2 "," 89584 ","SINAPI","JOELHO 90 GRAUS, PVC, SERIE R, ÁGUA PLUVIAL, DN 100 MM, JUNTA ELÁSTICA, FORNECIDO E INSTALADO EM CONDUTORES VERTICAIS DE ÁGUAS PLUVIAIS. AF_06/2022","UN",2,null,0,0,{"$error":"#DIV/0!"}]
[" 3.12.3 "," 4283 ","ORSE","Ralo hemisférico em fº fº, tipo abacaxi Ø 100mm","un",1,null,0,0,{"$error":"#DIV/0!"}]
[" 3.13 ",null,null,"REVESTIMENTOS",{"$nulls":4},{"$f":"SUM(I137,I143,I148)","v":0},{"$f":"I136/$H$435","v":{"$error":"#DIV/0!"}}]
[" 3.13.1 ",null,null,"REVESTIMENTOS INTERNOS",{"$nulls":4},{"$f":"SUM(I138:I142)","v":0},{"$error":"#DIV/0!"}]
[" 3.13.1.1 "," 87879 ","SINAPI","CHAPISCO APLICADO EM ALVENARIAS E ESTRUTURAS DE CONCRETO INTERNAS, COM COLHER DE PEDREIRO.  ARGAMASSA TRAÇO 1:3 COM PREPARO EM BETONEIRA 400L. AF_10/2022","m²",86.15,null,{"$f":"TRUNC(G138*(1+$G$2),2)","v":0},{"$f":"TRUNC(F138*H138,2)","v":0},{"$error":"#DIV/0!"}]
[" 3.13.1.2 "," 87886 ","SINAPI","CHAPISCO APLICADO NO TETO OU EM ESTRUTURA, COM DESEMPENADEIRA DENTADA. ARGAMASSA INDUSTRIALIZADA COM PREPARO MANUAL. AF_10/2022","m²",22.88,null,0,0,{"$error":"#DIV/0!"}]
[" 3.13.1.3 "," 87529 ","SINAPI","MASSA ÚNICA, PARA RECEBIMENTO DE PINTURA, EM ARGAMASSA TRAÇO 1:2:8, PREPARO MECÂNICO COM BETONEIRA 400L, APLICADA MANUALMENTE EM FACES INTERNAS DE PAREDES, ESPESSURA DE 20MM, COM EXECUÇÃO DE TALISCAS. AF_06/2014","m²",91.71,null,0,0,{"$error":"#DIV/0!"}]
[" 3.13.1.4 "," 87527 ","SINAPI","EMBOÇO, PARA RECEBIMENTO DE CERÂMICA, EM ARGAMASSA TRAÇO 1:2:8, PREPARO MECÂNICO COM BETONEIRA 400L, APLICADO MANUALMENTE EM FACES INTERNAS DE PAREDES, PARA AMBIENTE COM ÁREA MENOR QUE 5M2, ESPESSURA DE 20MM, COM EXECUÇÃO DE TALISCAS. AF_06/2014","m²",17.32,null,0,0,{"$error":"#DIV/0!"}]
[" 3.13.1.5 "," 87273 ","SINAPI","REVESTIMENTO CERÂMICO PARA PAREDES INTERNAS COM PLACAS TIPO ESMALTADA EXTRA  DE DIMENSÕES 33X45 CM APLICADAS NA ALTURA INTEIRA DAS PAREDES. AF_02/2023_PE","m²",17.32,null,0,0,{"$error":"#DIV/0!"}]
[" 3.13.2 ",null,null,"REVESTIMENTOS EXTERNOS",{"$nulls":4},{"$f":"SUM(I144:I147)","v":0},{"$error":"#DIV/0!"}]
[" 3.13.2.1 "," 87894 ","SINAPI","CHAPISCO APLICADO EM ALVENARIA (SEM PRESENÇA DE VÃOS) E ESTRUTURAS DE CONCRETO DE FACHADA, COM COLHER DE PEDREIRO.  ARGAMASSA TRAÇO 1:3 COM PREPARO EM BETONEIRA 400L. AF_10/2022","m²",44.54,null,0,0,{"$error":"#DIV/0!"}]
[" 3.13.2.2 "," 87905 ","SINAPI","CHAPISCO APLICADO EM ALVENARIA (COM PRESENÇA DE VÃOS) E ESTRUTURAS DE CONCRETO DE FACHADA, COM COLHER DE PEDREIRO.  ARGAMASSA TRAÇO 1:3 COM PREPARO EM BETONEIRA 400L. AF_10/2022","m²",66.680000000000007,null,0,0,{"$error":"#DIV/0!"}]
[" 3.13.2.3 "," 87792 ","SINAPI","EMBOÇO OU MASSA ÚNICA EM ARGAMASSA TRAÇO 1:2:8, PREPARO MECÂNICO COM BETONEIRA 400 L, APLICADA MANUALMENTE EM PANOS CEGOS DE FACHADA (SEM PRESENÇA DE VÃOS), ESPESSURA DE 25 MM. AF_08/2022","m²",44.54,null,0,0,{"$error":"#DIV/0!"}]
[" 3.13.2.4 "," 87775 ","SINAPI","EMBOÇO OU MASSA ÚNICA EM ARGAMASSA TRAÇO 1:2:8, PREPARO MECÂNICO COM BETONEIRA 400 L, APLICADA MANUALMENTE EM PANOS DE FACHADA COM PRESENÇA DE VÃOS, ESPESSURA DE 25 MM. AF_08/2022","m²",66.680000000000007,null,0,0,{"$error":"#DIV/0!"}]
[" 3.13.3 ",null,null,"CONTRAPISO E CERAMICA",{"$nulls":4},{"$f":"SUM(I149:I153)","v":0},{"$error":"#DIV/0!"}]
[" 3.13.3.1 "," 87620 ","SINAPI","CONTRAPISO EM ARGAMASSA TRAÇO 1:4 (CIMENTO E AREIA), PREPARO MECÂNICO COM BETONEIRA 400 L, APLICADO EM ÁREAS SECAS SOBRE LAJE, ADERIDO, ACABAMENTO NÃO REFORÇADO, ESPESSURA 2CM. AF_07/2021","m²",19.82,null,0,0,{"$error":"#DIV/0!"}]
[" 3.13.3.2 "," 87735 ","SINAPI","CONTRAPISO EM ARGAMASSA TRAÇO 1:4 (CIMENTO E AREIA), PREPARO MECÂNICO COM BETONEIRA 400 L, APLICADO EM ÁREAS MOLHADAS SOBRE LAJE, ADERIDO, ACABAMENTO NÃO REFORÇADO, ESPESSURA 2CM. AF_07/2021","m²",3.06,null,0,0,{"$error":"#DIV/0!"}]
[" 3.13.3.3 "," 87246 ","SINAPI","REVESTIMENTO CERÂMICO PARA PISO COM PLACAS TIPO ESMALTADA EXTRA DE DIMENSÕES 35X35 CM APLICADA EM AMBIENTES DE ÁREA MENOR QUE 5 M2. AF_02/2023_PE","m²",3.06,null,0,0,{"$error":"#DIV/0!"}]
[" 3.13.3.4 "," 87247 ","SINAPI","REVESTIMENTO CERÂMICO PARA PISO COM PLACAS TIPO ESMALTADA EXTRA DE DIMENSÕES 35X35 CM APLICADA EM AMBIENTES DE ÁREA ENTRE 5 M2 E 10 M2. AF_02/2023_PE","m²",8.93,null,0,0,{"$error":"#DIV/0!"}]
[" 3.13.3.5 "," 87248 ","SINAPI","REVESTIMENTO CERÂMICO PARA PISO COM PLACAS TIPO ESMALTADA EXTRA DE DIMENSÕES 35X35 CM APLICADA EM AMBIENTES DE ÁREA MAIOR QUE 10 M2. AF_02/2023_PE","m²",10.89,null,0,0,{"$error":"#DIV/0!"}]
[" 3.14 ",null,null,"RODAPÉS, PEITORIS E BANCADAS",{"$nulls":4},{"$f":"SUM(I155:I156)","v":0},{"$error":"#DIV/0!"}]
[" 3.14.1 "," 88648 ","SINAPI","RODAPÉ CERÂMICO DE 7CM DE ALTURA COM PLACAS TIPO ESMALTADA EXTRA  DE DIMENSÕES 35X35CM. AF_02/2023","M",38.64,null,0,0,{"$error":"#DIV/0!"}]
[" 3.14.2 "," 1988 ","ORSE","Peitoril granito cinza polido, c/ largura = 17 cm, esp = 2 cm","m",3.5,null,0,0,{"$error":"#DIV/0!"}]
[" 3.15 ",null,null,"ESQUADRIAS E VIDROS",{"$nulls":4},{"$f":"SUM(I158:I162)","v":0},{"$error":"#DIV/0!"}]
[" 3.15.1 "," 90843 ","SINAPI","KIT DE PORTA DE MADEIRA PARA PINTURA, SEMI-OCA (LEVE OU MÉDIA), PADRÃO MÉDIO, 80X210CM, ESPESSURA DE 3,5CM, ITENS INCLUSOS: DOBRADIÇAS, MONTAGEM E INSTALAÇÃO DO BATENTE, FECHADURA COM EXECUÇÃO DO FURO - FORNECIMENTO E INSTALAÇÃO. AF_12/2019","UN",2,null,0,0,{"$error":"#DIV/0!"}]
[" 3.15.2 "," 91341 ","SINAPI","PORTA EM ALUMÍNIO DE ABRIR TIPO VENEZIANA COM GUARNIÇÃO, FIXAÇÃO COM PARAFUSOS - FORNECIMENTO E INSTALAÇÃO. AF_12/2019","m²",1.68,null,0,0,{"$error":"#DIV/0!"}]
[" 3.15.3 "," 94570 ","SINAPI","JANELA DE ALUMÍNIO DE CORRER COM 2 FOLHAS PARA VIDROS, COM VIDROS, BATENTE, ACABAMENTO COM ACETATO OU BRILHANTE E FERRAGENS. EXCLUSIVE ALIZAR E CONTRAMARCO. FORNECIMENTO E INSTALAÇÃO. AF_12/2019","m²",2.4,null,0,0,{"$error":"#DIV/0!"}]
[" 3.15.4 "," 94589 ","SINAPI","CONTRAMARCO DE ALUMÍNIO, FIXAÇÃO COM ARGAMASSA - FORNECIMENTO E INSTALAÇÃO. AF_12/2019","M",3,null,0,0,{"$error":"#DIV/0!"}]
[" 3.15.5 "," 94569 ","SINAPI","JANELA DE ALUMÍNIO TIPO MAXIM-AR, COM VIDROS, BATENTE E FERRAGENS. EXCLUSIVE ALIZAR, ACABAMENTO E CONTRAMARCO. FORNECIMENTO E INSTALAÇÃO. AF_12/2019","m²",0.6,null,0,0,{"$error":"#DIV/0!"}]
[" 3.16 ",null,null,"PINTURA",{"$nulls":4},{"$f":"SUM(I164:I173)","v":0},{"$error":"#DIV/0!"}]
[" 3.16.1 "," 102218 ","SINAPI","PINTURA TINTA DE ACABAMENTO (PIGMENTADA) ESMALTE SINTÉTICO FOSCO EM MADEIRA, 2 DEMÃOS. AF_01/2021","m²",10.08,null,0,0,{"$error":"#DIV/0!"}]
[" 3.16.2 "," 88484 ","SINAPI","FUNDO SELADOR ACRÍLICO, APLICAÇÃO MANUAL EM TETO, UMA DEMÃO. AF_04/2023","m²",22.88,null,0,0,{"$error":"#DIV/0!"}]
[" 3.16.3 "," 88496 ","SINAPI","EMASSAMENTO COM MASSA LÁTEX, APLICAÇÃO EM TETO, DUAS DEMÃOS, LIXAMENTO MANUAL. AF_04/2023","m²",22.88,null,0,0,{"$error":"#DIV/0!"}]
[" 3.16.4 "," 104640 ","SINAPI","PINTURA LÁTEX ACRÍLICA STANDARD, APLICAÇÃO MANUAL EM TETO, DUAS DEMÃOS. AF_04/2023","m²",22.88,null,0,0,{"$error":"#DIV/0!"}]
[" 3.16.5 "," 88485 ","SINAPI","FUNDO SELADOR ACRÍLICO, APLICAÇÃO MANUAL EM PAREDE, UMA DEMÃO. AF_04/2023","m²",68.83,null,0,0,{"$error":"#DIV/0!"}]
[" 3.16.6 "," 88497 ","SINAPI","EMASSAMENTO COM MASSA LÁTEX, APLICAÇÃO EM PAREDE, DUAS DEMÃOS, LIXAMENTO MANUAL. AF_04/2023","m²",68.83,null,0,0,{"$error":"#DIV/0!"}]
[" 3.16.7 "," 104642 ","SINAPI","PINTURA LÁTEX ACRÍLICA STANDARD, APLICAÇÃO MANUAL EM PAREDES, DUAS DEMÃOS. AF_04/2023","m²",68.83,null,0,0,{"$error":"#DIV/0!"}]
[" 3.16.8 "," 88485 ","SINAPI","FUNDO SELADOR ACRÍLICO, APLICAÇÃO MANUAL EM PAREDE, UMA DEMÃO. AF_04/2023","m²",111.22,null,0,0,{"$error":"#DIV/0!"}]
[" 3.16.9 "," 96132 ","SINAPI","APLICAÇÃO MANUAL DE MASSA ACRÍLICA EM PANOS DE FACHADA SEM PRESENÇA DE VÃOS, DE EDIFÍCIOS DE MÚLTIPLOS PAVIMENTOS, DUAS DEMÃOS. AF_05/2017","m²",111.22,null,0,0,{"$error":"#DIV/0!"}]
[" 3.16.10 "," 88489 ","SINAPI","PINTURA LÁTEX ACRÍLICA PREMIUM, APLICAÇÃO MANUAL EM PAREDES, DUAS DEMÃOS. AF_04/2023","m²",111.22,null,0,0,{"$error":"#DIV/0!"}]
[" 3.17 ",null,null,"LOUÇAS E METAIS SANITÁRIOS",{"$nulls":4},{"$f":"SUM(I175:I181)","v":0},{"$error":"#DIV/0!"}]
[" 3.17.1 "," 95469 ","SINAPI","VASO SANITARIO SIFONADO CONVENCIONAL COM  LOUÇA BRANCA - FORNECIMENTO E INSTALAÇÃO. AF_01/2020","UN",1,null,0,0,{"$error":"#DIV/0!"}]
[" 3.17.2 "," 86942 ","SINAPI","LAVATÓRIO LOUÇA BRANCA SUSPENSO, 29,5 X 39CM OU EQUIVALENTE, PADRÃO POPULAR, INCLUSO SIFÃO TIPO GARRAFA EM PVC, VÁLVULA E ENGATE FLEXÍVEL 30CM EM PLÁSTICO E TORNEIRA CROMADA DE MESA, PADRÃO POPULAR - FORNECIMENTO E INSTALAÇÃO. AF_01/2020","UN",1,null,0,0,{"$error":"#DIV/0!"}]
[" 3.17.3 "," 100868 ","SINAPI","BARRA DE APOIO RETA, EM ACO INOX POLIDO, COMPRIMENTO 80 CM,  FIXADA NA PAREDE - FORNECIMENTO E INSTALAÇÃO. AF_01/2020","UN",2,null,0,0,{"$error":"#DIV/0!"}]
[" 3.17.4 "," 12126 ","ORSE","Barra de apoio, para lavatório de canto, tres lados, fixa, em aço inox, l=18+25+18cm, d=1 1/4\", Jackwal ou similar","un",1.2,null,0,0,{"$error":"#DIV/0!"}]
[" 3.17.5 "," 9718 ","ORSE","Espelho de cristal 4mm com moldura de alumínio","m²",0.4,null,0,0,{"$error":"#DIV/0!"}]
[" 3.17.6 "," 95544 ","SINAPI","PAPELEIRA DE PAREDE EM METAL CROMADO SEM TAMPA, INCLUSO FIXAÇÃO. AF_01/2020","UN",1,null,0,0,{"$error":"#DIV/0!"}]
[" 3.17.7 "," 95545 ","SINAPI","SABONETEIRA DE PAREDE EM METAL CROMADO, INCLUSO FIXAÇÃO. AF_01/2020","UN",1,null,0,0,{"$error":"#DIV/0!"}]
[" 3.18 ",null,null,"INSTALAÇÕES DE PROTEÇÃO E COMBATE A INCÊNDIO",{"$nulls":4},{"$f":"SUM(I183:I185)","v":0},{"$error":"#DIV/0!"}]
[" 3.18.1 "," 101909 ","SINAPI","EXTINTOR DE INCÊNDIO PORTÁTIL COM CARGA DE PQS DE 6 KG, CLASSE BC - FORNECIMENTO E INSTALAÇÃO. AF_10/2020_PE","UN",1,null,0,0,{"$error":"#DIV/0!"}]
[" 3.18.2 "," 11852 ","ORSE","Placa de sinalizacao de seguranca contra incendio, fotoluminescente, retangular, *12 x 40* cm, em pvc *2* mm anti-chamas (simbolos, cores e pictogramas conforme nbr 13434)","Un",1,null,0,0,{"$error":"#DIV/0!"}]
[" 3.18.3 "," 11853 ","ORSE","Placa de sinalizacao de seguranca contra incendio, fotoluminescente, retangular, *20 x 40* cm, em pvc *2* mm anti-chamas (simbolos, cores e pictogramas conforme nbr 13434)","Un",1,null,0,0,{"$error":"#DIV/0!"}]
[" 3.19 ",null,null,"DIVERSOS",{"$nulls":4},{"$f":"SUM(I187)","v":0},{"$error":"#DIV/0!"}]
[" 3.19.1 "," 2450 ","ORSE","Limpeza geral","m²",27.125,null,0,0,{"$error":"#DIV/0!"}]
[" 4 ",null,null,"REFORMA DE TANQUES EXISTENTES ( PILOTO)",{"$nulls":4},{"$f":"SUM(I189,I193,I208)","v":0},{"$error":"#DIV/0!"}]
[" 4.1 ",null,null,"EMBOÇO E REBOCO",{"$nulls":4},{"$f":"SUM(I190:I192)","v":0},{"$error":"#DIV/0!"}]
[" 4.1.1 "," 103335 ","SINAPI","ALVENARIA DE VEDAÇÃO DE BLOCOS CERÂMICOS FURADOS NA HORIZONTAL DE 14X9X19 CM (ESPESSURA 14 CM, BLOCO DEITADO) E ARGAMASSA DE ASSENTAMENTO COM PREPARO MANUAL. AF_12/2021","m²",117.462,null,{"$f":"TRUNC(G190*(1+$G$2),2)","v":0},{"$f":"TRUNC(F190*H190,2)","v":0},{"$error":"#DIV/0!"}]
[" 4.1.2 "," 87878 ","SINAPI","CHAPISCO APLICADO EM ALVENARIAS E ESTRUTURAS DE CONCRETO INTERNAS, COM COLHER DE PEDREIRO.  ARGAMASSA TRAÇO 1:3 COM PREPARO MANUAL. AF_10/2022","m²",915.88800000000003,null,0,0,{"$error":"#DIV/0!"}]
[" 4.1.3 "," 87529 ","SINAPI","MASSA ÚNICA, PARA RECEBIMENTO DE PINTURA, EM ARGAMASSA TRAÇO 1:2:8, PREPARO MECÂNICO COM BETONEIRA 400L, APLICADA MANUALMENTE EM FACES INTERNAS DE PAREDES, ESPESSURA DE 20MM, COM EXECUÇÃO DE TALISCAS. AF_06/2014","m²",915.88800000000003,null,0,0,{"$error":"#DIV/0!"}]
[" 4.2 ",null,null,"REFORÇO E IMPERMEABILIZAÇÃO DE PAREDES",{"$nulls":4},{"$f":"SUM(I194:I207)","v":0},{"$error":"#DIV/0!"}]
[" 4.2.1 "," 10012 ","ORSE","Fornecimento e instalação de tela aço soldada nervurada CA-60, malha 15x15cm, ferro 4.2mm, painel 2x3m, (1,50kg/m²), Malha Pop Reforçada Gerdau ou similar","m²",418.03199999999998,null,0,0,{"$error":"#DIV/0!"}]
[" 4.2.2 "," 11657 ","ORSE","Forma plana para estruturas, em compensado resinado de 10mm, 07 usos, inclusive escoramento - Revisada 07.2015","m²",418.03199999999998,null,0,0,{"$error":"#DIV/0!"}]
[" 4.2.3 "," 3638 ","ORSE","Fornecimento e instalação de tela aço soldada nervurada CA-60, Q-196, malha 10x10cm, ferro 5.0mm (3,11 kg/m2), painel 2,45x6,0m, Telcon ou similar","m²",455.99400000000003,null,0,0,{"$error":"#DIV/0!"}]
[" 4.2.4 "," 93204 ","SINAPI","CINTA DE AMARRAÇÃO DE ALVENARIA MOLDADA IN LOCO EM CONCRETO. AF_03/2016","M",309.64999999999998,null,0,0,{"$error":"#DIV/0!"}]
[" 4.2.5 "," 94964 ","SINAPI","CONCRETO FCK = 20MPA, TRAÇO 1:2,7:3 (EM MASSA SECA DE CIMENTO/ AREIA MÉDIA/ BRITA 1) - PREPARO MECÂNICO COM BETONEIRA 400 L. AF_05/2021","m³",41.378700000000002,null,0,0,{"$error":"#DIV/0!"}]
[" 4.2.6 "," 103670 ","SINAPI","LANÇAMENTO COM USO DE BALDES, ADENSAMENTO E ACABAMENTO DE CONCRETO EM ESTRUTURAS. AF_02/2022","m³",41.378700000000002,null,0,0,{"$error":"#DIV/0!"}]
[" 4.2.7 "," 98546 ","SINAPI","IMPERMEABILIZAÇÃO DE SUPERFÍCIE COM MANTA ASFÁLTICA, UMA CAMADA, INCLUSIVE APLICAÇÃO DE PRIMER ASFÁLTICO, E=3MM. AF_06/2018","m²",734.14,null,0,0,{"$f":"I200/$H$435","v":{"$error":"#DIV/0!"}}]
[" 4.2.8 "," 98565 ","SINAPI","PROTEÇÃO MECÂNICA DE SUPERFICIE HORIZONTAL COM ARGAMASSA DE CIMENTO E AREIA, TRAÇO 1:3, E=3CM. AF_06/2018","m²",481.14,null,0,0,{"$error":"#DIV/0!"}]
[" 4.2.9 "," 98566 ","SINAPI","PROTEÇÃO MECÂNICA DE SUPERFÍCIE VERTICAL COM ARGAMASSA DE CIMENTO E AREIA, TRAÇO 1:3, E=3CM. AF_06/2018","m²",253,null,0,0,{"$error":"#DIV/0!"}]
[" 4.2.10 "," GRR-03 ","Próprio","SHER-TILE CLEAR HS BR INCOLOR - COMP A","un",11,null,{"$f":"TRUNC(G203*(1+$H$2),2)","v":0},0,{"$error":"#DIV/0!"}]
[" 4.2.11 "," GRR-04 ","Próprio","SHER-TILE CLEAR HS BR INCOLOR COMP. B","un",11,null,{"$f":"TRUNC(G204*(1+$H$2),2)","v":0},0,{"$error":"#DIV/0!"}]
[" 4.2.12 "," GRR-05 ","Próprio","SUMASTIC AWWA AZUL PISCINA COMP A","un",33,null,0,0,{"$error":"#DIV/0!"}]
[" 4.2.13 "," GRR-06 ","Próprio","SUMASTIC AWWA COMP B","un",33,null,0,0,{"$error":"#DIV/0!"}]
[" 4.2.14 "," GRR-07 ","Próprio","DILUENTE NR. 908","un",7,null,0,0,{"$error":"#DIV/0!"}]
[" 4.3 ",null,null,"ESTUFA",{"$nulls":4},{"$f":"SUM(I209)","v":0},{"$error":"#DIV/0!"}]
[" 4.3.1 "," 4 ","Próprio","ESTUFA","un",1,null,{"$f":"TRUNC(G209*(1+$G$2),2)","v":0},0,{"$error":"#DIV/0!"}]
[" 5 ",null,null,"CONSTRUÇÃO DE NOVOS TANQUES (PILOTO)",{"$nulls":4},{"$f":"SUM(I211,I216,I228,I230,I232,I235,I238)","v":0},{"$error":"#DIV/0!"}]
[" 5.1 ",null,null,"MOVIMENTO EM TERRA",{"$nulls":4},{"$f":"SUM(I212:I215)","v":0},{"$error":"#DIV/0!"}]
[" 5.1.1 "," 101115 ","SINAPI","ESCAVAÇÃO HORIZONTAL EM SOLO DE 1A CATEGORIA COM TRATOR DE ESTEIRAS (150HP/LÂMINA: 3,18M3). AF_07/2020","m³",264,null,{"$f":"TRUNC(G212*(1+$G$2),2)","v":0},{"$f":"TRUNC(F212*H212,2)","v":0},{"$error":"#DIV/0!"}]
[" 5.1.2 "," 100977 ","SINAPI","CARGA, MANOBRA E DESCARGA DE SOLOS E MATERIAIS GRANULARES EM CAMINHÃO BASCULANTE 6 M³ - CARGA COM ESCAVADEIRA HIDRÁULICA (CAÇAMBA DE 1,20 M³ / 155 HP) E DESCARGA LIVRE (UNIDADE: M3). AF_07/2020","m³",264,null,0,0,{"$error":"#DIV/0!"}]
[" 5.1.3 "," 97914 ","SINAPI","TRANSPORTE COM CAMINHÃO BASCULANTE DE 6 M³, EM VIA URBANA PAVIMENTADA, DMT ATÉ 30 KM (UNIDADE: M3XKM). AF_07/2020","M3XKM",1122,null,0,0,{"$error":"#DIV/0!"}]
[" 5.1.4 "," 101617 ","SINAPI","PREPARO DE FUNDO DE VALA COM LARGURA MAIOR OU IGUAL A 1,5 M E MENOR QUE 2,5 M (ACERTO DO SOLO NATURAL). AF_08/2020","m²",49.59,null,0,0,{"$error":"#DIV/0!"}]
[" 5.2 ",null,null,"ESTRUTURA EM CONCRETO ARMADO",{"$nulls":4},{"$f":"SUM(I217:I227)","v":0},{"$error":"#DIV/0!"}]
[" 5.2.1 "," 11657 ","ORSE","Forma plana para estruturas, em compensado resinado de 10mm, 07 usos, inclusive escoramento - Revisada 07.2015","m²",26.26,null,0,0,{"$error":"#DIV/0!"}]
[" 5.2.2 "," 92770 ","SINAPI","ARMAÇÃO DE LAJE DE ESTRUTURA CONVENCIONAL DE CONCRETO ARMADO UTILIZANDO AÇO CA-50 DE 8,0 MM - MONTAGEM. AF_06/2022","KG",2335,null,0,0,{"$error":"#DIV/0!"}]
[" 5.2.3 "," 103684 ","SINAPI","CONCRETAGEM DE RESERVATÓRIOS, FCK=25 MPA, COM USO DE BOMBA - LANÇAMENTO, ADENSAMENTO E ACABAMENTO. AF_02/2022_PS","m³",38.78,null,0,0,{"$error":"#DIV/0!"}]
[" 5.2.4 "," 98546 ","SINAPI","IMPERMEABILIZAÇÃO DE SUPERFÍCIE COM MANTA ASFÁLTICA, UMA CAMADA, INCLUSIVE APLICAÇÃO DE PRIMER ASFÁLTICO, E=3MM. AF_06/2018","m²",247.12,null,0,0,{"$error":"#DIV/0!"}]
[" 5.2.5 "," 98565 ","SINAPI","PROTEÇÃO MECÂNICA DE SUPERFICIE HORIZONTAL COM ARGAMASSA DE CIMENTO E AREIA, TRAÇO 1:3, E=3CM. AF_06/2018","m²",155.12,null,0,0,{"$error":"#DIV/0!"}]
[" 5.2.6 "," 98566 ","SINAPI","PROTEÇÃO MECÂNICA DE SUPERFÍCIE VERTICAL COM ARGAMASSA DE CIMENTO E AREIA, TRAÇO 1:3, E=3CM. AF_06/2018","m²",92,null,0,0,{"$error":"#DIV/0!"}]
[" 5.2.7 "," GRR-03 ","Próprio","SHER-TILE CLEAR HS BR INCOLOR - COMP A","un",4,null,{"$f":"TRUNC(G223*(1+$H$2),2)","v":0},0,{"$error":"#DIV/0!"}]
[" 5.2.8 "," GRR-04 ","Próprio","SHER-TILE CLEAR HS BR INCOLOR COMP. B","un",4,null,0,0,{"$error":"#DIV/0!"}]
[" 5.2.9 "," GRR-05 ","Próprio","SUMASTIC AWWA AZUL PISCINA COMP A","un",10,null,0,0,{"$error":"#DIV/0!"}]
[" 5.2.10 "," GRR-06 ","Próprio","SUMASTIC AWWA COMP B","un",10,null,0,0,{"$error":"#DIV/0!"}]
[" 5.2.11 "," GRR-07 ","Próprio","DILUENTE NR. 908","un",2,null,0,0,{"$error":"#DIV/0!"}]
[" 5.3 ",null,null,"CALÇADA DE CONTORNO",{"$nulls":4},{"$f":"SUM(I229)","v":0},{"$error":"#DIV/0!"}]
[" 5.3.1 "," 94990 ","SINAPI","EXECUÇÃO DE PASSEIO (CALÇADA) OU PISO DE CONCRETO COM CONCRETO MOLDADO IN LOCO, FEITO EM OBRA, ACABAMENTO CONVENCIONAL, NÃO ARMADO. AF_08/2022","m³",7.4880000000000004,null,{"$f":"TRUNC(G229*(1+$G$2),2)","v":0},0,{"$error":"#DIV/0!"}]
[" 5.4 ",null,null,"EXTRAVASOR",{"$nulls":4},{"$f":"SUM(I231)","v":0},{"$error":"#DIV/0!"}]
[" 5.4.1 "," 89511 ","SINAPI","TUBO PVC, SÉRIE R, ÁGUA PLUVIAL, DN 75 MM, FORNECIDO E INSTALADO EM RAMAL DE ENCAMINHAMENTO. AF_06/2022","M",6,null,0,0,{"$error":"#DIV/0!"}]
[" 5.5 ",null,null,"DRENAGEM",{"$nulls":4},{"$f":"SUM(I233:I234)","v":0},{"$error":"#DIV/0!"}]
[" 5.5.1 "," 89512 ","SINAPI","TUBO PVC, SÉRIE R, ÁGUA PLUVIAL, DN 100 MM, FORNECIDO E INSTALADO EM RAMAL DE ENCAMINHAMENTO. AF_06/2022","M",18,null,0,0,{"$error":"#DIV/0!"}]
[" 5.5.2 "," 94500 ","SINAPI","REGISTRO DE GAVETA BRUTO, LATÃO, ROSCÁVEL, 3\" - FORNECIMENTO E INSTALAÇÃO. AF_08/2021","UN",6,null,0,0,{"$error":"#DIV/0!"}]
[" 5.6 ",null,null,"ABASTECIMENTO DE ÁGUA",{"$nulls":4},{"$f":"SUM(I236:I237)","v":0},{"$error":"#DIV/0!"}]
[" 5.6.1 "," 89511 ","SINAPI","TUBO PVC, SÉRIE R, ÁGUA PLUVIAL, DN 75 MM, FORNECIDO E INSTALADO EM RAMAL DE ENCAMINHAMENTO. AF_06/2022","M",18,null,0,0,{"$error":"#DIV/0!"}]
[" 5.6.2 "," 94500 ","SINAPI","REGISTRO DE GAVETA BRUTO, LATÃO, ROSCÁVEL, 3\" - FORNECIMENTO E INSTALAÇÃO. AF_08/2021","UN",6,null,0,0,{"$error":"#DIV/0!"}]
[" 5.7 ",null,null,"LIMPEZA",{"$nulls":4},{"$f":"SUM(I239)","v":0},{"$error":"#DIV/0!"}]
[" 5.7.1 "," 2450 ","ORSE","Limpeza geral","m²",156.55000000000001,null,0,0,{"$error":"#DIV/0!"}]
[" 6 ",null,null,"ARRASAMENTO DE VIVEIROS E RECONSTRUÇÃO DE TALUDES",{"$nulls":4},{"$f":"SUM(I241:I245)","v":0},{"$error":"#DIV/0!"}]
[" 6.1 "," 101115 ","SINAPI","ESCAVAÇÃO HORIZONTAL EM SOLO DE 1A CATEGORIA COM TRATOR DE ESTEIRAS (150HP/LÂMINA: 3,18M3). AF_07/2020","m³",4241.1949599999998,null,0,0,{"$error":"#DIV/0!"}]
[" 6.2 "," 101115 ","SINAPI","ESCAVAÇÃO HORIZONTAL EM SOLO DE 1A CATEGORIA COM TRATOR DE ESTEIRAS (150HP/LÂMINA: 3,18M3). AF_07/2020","m³",4241.1949599999998,null,0,0,{"$error":"#DIV/0!"}]
[" 6.3 "," 101617 ","SINAPI","PREPARO DE FUNDO DE VALA COM LARGURA MAIOR OU IGUAL A 1,5 M E MENOR QUE 2,5 M (ACERTO DO SOLO NATURAL). AF_08/2020","m²",30062,null,0,0,{"$error":"#DIV/0!"}]
[" 6.4 "," 96385 ","SINAPI","EXECUÇÃO E COMPACTAÇÃO DE ATERRO COM SOLO PREDOMINANTEMENTE ARGILOSO - EXCLUSIVE SOLO, ESCAVAÇÃO, CARGA E TRANSPORTE. AF_11/2019","m³",3892.4524999999999,null,0,0,{"$error":"#DIV/0!"}]
[" 6.5 "," 00006081 ","SINAPI","ARGILA OU BARRO PARA ATERRO/REATERRO (COM TRANSPORTE ATE 10 KM)","m³",3892.4524999999999,null,{"$f":"TRUNC(G245*(1+$H$2),2)","v":0},0,{"$error":"#DIV/0!"}]
[" 7 ",null,null,"DRENAGEM DE VIVEIROS",{"$nulls":4},{"$f":"SUM(I247:I251)","v":0},{"$error":"#DIV/0!"}]
[" 7.1 "," 90092 ","SINAPI","ESCAVAÇÃO MECANIZADA DE VALA COM PROF. MAIOR QUE 1,5 M E ATÉ 3,0 M(MÉDIA MONTANTE E JUSANTE/UMA COMPOSIÇÃO POR TRECHO), ESCAVADEIRA (0,8 M3), LARG. MENOR QUE 1,5 M, EM SOLO DE 1A CATEGORIA, LOCAIS COM BAIXO NÍVEL DE INTERFERÊNCIA. AF_02/2021","m³",930,null,{"$f":"TRUNC(G247*(1+$G$2),2)","v":0},0,{"$error":"#DIV/0!"}]
[" 7.2 "," 101618 ","SINAPI","PREPARO DE FUNDO DE VALA COM LARGURA MENOR QUE 1,5 M, COM CAMADA DE AREIA, LANÇAMENTO MANUAL. AF_08/2020","m³",93,null,0,0,{"$error":"#DIV/0!"}]
[" 7.3 "," 90702 ","SINAPI","TUBO DE PVC CORRUGADO DE DUPLA PAREDE PARA REDE COLETORA DE ESGOTO, DN 200 MM, JUNTA ELÁSTICA - FORNECIMENTO E ASSENTAMENTO. AF_01/2021","M",558,null,0,0,{"$error":"#DIV/0!"}]
[" 7.4 "," 93368 ","SINAPI","REATERRO MECANIZADO DE VALA COM ESCAVADEIRA HIDRÁULICA (CAPACIDADE DA CAÇAMBA: 0,8 M³ / POTÊNCIA: 111 HP), LARGURA ATÉ 1,5 M, PROFUNDIDADE DE 1,5 A 3,0 M, COM SOLO DE 1ª CATEGORIA EM LOCAIS COM BAIXO NÍVEL DE INTERFERÊNCIA. AF_04/2016","m³",930,null,0,0,{"$error":"#DIV/0!"}]
[" 7.5 "," 5982 ","ORSE","Fornecimento de registro de gaveta em ferro fundido, com bolsas para tubo de ferro dúctil, cunha de borracha, cabeçote, pn 16, tipo \"euro 25\", diam. =  150mm","un",31,null,0,0,{"$error":"#DIV/0!"}]
[" 8 ",null,null,"CAIXA DE DESPESCA",{"$nulls":4},{"$f":"SUM(I253:I262)","v":0},{"$error":"#DIV/0!"}]
[" 8.1 "," 97625 ","SINAPI","DEMOLIÇÃO DE ALVENARIA PARA QUALQUER TIPO DE BLOCO, DE FORMA MECANIZADA, SEM REAPROVEITAMENTO. AF_12/2017","m³",32.844000000000001,null,0,0,{"$error":"#DIV/0!"}]
[" 8.2 "," 97629 ","SINAPI","DEMOLIÇÃO DE LAJES, DE FORMA MECANIZADA COM MARTELETE, SEM REAPROVEITAMENTO. AF_12/2017","m³",28.98,null,0,0,{"$error":"#DIV/0!"}]
[" 8.3 "," 93204 ","SINAPI","CINTA DE AMARRAÇÃO DE ALVENARIA MOLDADA IN LOCO EM CONCRETO. AF_03/2016","M",289.8,null,0,0,{"$error":"#DIV/0!"}]
[" 8.4 "," 92759 ","SINAPI","ARMAÇÃO DE PILAR OU VIGA DE ESTRUTURA CONVENCIONAL DE CONCRETO ARMADO UTILIZANDO AÇO CA-60 DE 5,0 MM - MONTAGEM. AF_06/2022","KG",379,null,0,0,{"$error":"#DIV/0!"}]
[" 8.5 "," 92761 ","SINAPI","ARMAÇÃO DE PILAR OU VIGA DE ESTRUTURA CONVENCIONAL DE CONCRETO ARMADO UTILIZANDO AÇO CA-50 DE 8,0 MM - MONTAGEM. AF_06/2022","KG",2173,null,0,0,{"$error":"#DIV/0!"}]
[" 8.6 "," 92762 ","SINAPI","ARMAÇÃO DE PILAR OU VIGA DE ESTRUTURA CONVENCIONAL DE CONCRETO ARMADO UTILIZANDO AÇO CA-50 DE 10,0 MM - MONTAGEM. AF_06/2022","KG",351,null,0,0,{"$error":"#DIV/0!"}]
[" 8.7 "," 92763 ","SINAPI","ARMAÇÃO DE PILAR OU VIGA DE ESTRUTURA CONVENCIONAL DE CONCRETO ARMADO UTILIZANDO AÇO CA-50 DE 12,5 MM - MONTAGEM. AF_06/2022","KG",428,null,0,0,{"$error":"#DIV/0!"}]
[" 8.8 "," 97096 ","SINAPI","CONCRETAGEM DE RADIER, PISO DE CONCRETO OU LAJE SOBRE SOLO, FCK 30 MPA - LANÇAMENTO, ADENSAMENTO E ACABAMENTO. AF_09/2021","m³",37.04,null,0,0,{"$error":"#DIV/0!"}]
[" 8.9 "," 11657 ","ORSE","Forma plana para estruturas, em compensado resinado de 10mm, 07 usos, inclusive escoramento - Revisada 07.2015","m²",103.17,null,0,0,{"$error":"#DIV/0!"}]
[" 8.10 "," 103684 ","SINAPI","CONCRETAGEM DE RESERVATÓRIOS, FCK=25 MPA, COM USO DE BOMBA - LANÇAMENTO, ADENSAMENTO E ACABAMENTO. AF_02/2022_PS","m³",8.64,null,0,0,{"$error":"#DIV/0!"}]
[" 9 ",null,null,"AUDITÓRIO",{"$nulls":4},{"$f":"SUM(I264,I268,I271,I278,I285,I291,I297,I308,I312,I317)","v":0},{"$error":"#DIV/0!"}]
[" 9.1 ",null,null,"DEMOLIÇÃO",{"$nulls":4},{"$f":"SUM(I265:I267)","v":0},{"$f":"I264/$H$435","v":{"$error":"#DIV/0!"}}]
[" 9.1.1 "," 97634 ","SINAPI","DEMOLIÇÃO DE REVESTIMENTO CERÂMICO, DE FORMA MECANIZADA COM MARTELETE, SEM REAPROVEITAMENTO. AF_12/2017","m²",156.9,null,{"$f":"TRUNC(G265*(1+$G$2),2)","v":0},{"$f":"TRUNC(F265*H265,2)","v":0},{"$error":"#DIV/0!"}]
[" 9.1.2 "," 100981 ","SINAPI","CARGA, MANOBRA E DESCARGA DE ENTULHO EM CAMINHÃO BASCULANTE 6 M³ - CARGA COM ESCAVADEIRA HIDRÁULICA  (CAÇAMBA DE 0,80 M³ / 111 HP) E DESCARGA LIVRE (UNIDADE: M3). AF_07/2020","m³",13.98,null,0,0,{"$error":"#DIV/0!"}]
[" 9.1.3 "," 9182 ","ORSE","Demolição de concreto com martelete e compressor","m³",6.14,null,0,0,{"$error":"#DIV/0!"}]
[" 9.2 ",null,null,"REFORÇO DA PAREDE",{"$nulls":4},{"$f":"SUM(I269:I270)","v":0},{"$error":"#DIV/0!"}]
[" 9.2.1 "," 91603 ","SINAPI","ARMAÇÃO DO SISTEMA DE PAREDES DE CONCRETO, EXECUTADA COMO REFORÇO, VERGALHÃO DE 10,0 MM DE DIÂMETRO. AF_06/2019","KG",7.4,null,0,0,{"$error":"#DIV/0!"}]
[" 9.2.2 "," 94964 ","SINAPI","CONCRETO FCK = 20MPA, TRAÇO 1:2,7:3 (EM MASSA SECA DE CIMENTO/ AREIA MÉDIA/ BRITA 1) - PREPARO MECÂNICO COM BETONEIRA 400 L. AF_05/2021","m³",1,null,0,0,{"$error":"#DIV/0!"}]
[" 9.3 ",null,null,"PISO",{"$nulls":4},{"$f":"SUM(I272:I277)","v":0},{"$error":"#DIV/0!"}]
[" 9.3.1 "," 11447 ","ORSE","Compactação manual com compactador a percussão sapinho, sem controle do grau de compactação","m³",233.78,null,0,0,{"$error":"#DIV/0!"}]
[" 9.3.2 "," 94994 ","SINAPI","EXECUÇÃO DE PASSEIO (CALÇADA) OU PISO DE CONCRETO COM CONCRETO MOLDADO IN LOCO, FEITO EM OBRA, ACABAMENTO CONVENCIONAL, ESPESSURA 8 CM, ARMADO. AF_08/2022","m²",6.14,null,0,0,{"$error":"#DIV/0!"}]
[" 9.3.3 "," 97096 ","SINAPI","CONCRETAGEM DE RADIER, PISO DE CONCRETO OU LAJE SOBRE SOLO, FCK 30 MPA - LANÇAMENTO, ADENSAMENTO E ACABAMENTO. AF_09/2021","m³",12.55,null,0,0,{"$error":"#DIV/0!"}]
[" 9.3.4 "," 87620 ","SINAPI","CONTRAPISO EM ARGAMASSA TRAÇO 1:4 (CIMENTO E AREIA), PREPARO MECÂNICO COM BETONEIRA 400 L, APLICADO EM ÁREAS SECAS SOBRE LAJE, ADERIDO, ACABAMENTO NÃO REFORÇADO, ESPESSURA 2CM. AF_07/2021","m²",156.9,null,0,0,{"$error":"#DIV/0!"}]
[" 9.3.5 "," 87248 ","SINAPI","REVESTIMENTO CERÂMICO PARA PISO COM PLACAS TIPO ESMALTADA EXTRA DE DIMENSÕES 35X35 CM APLICADA EM AMBIENTES DE ÁREA MAIOR QUE 10 M2. AF_02/2023_PE","m²",156.9,null,0,0,{"$error":"#DIV/0!"}]
[" 9.3.6 "," 88648 ","SINAPI","RODAPÉ CERÂMICO DE 7CM DE ALTURA COM PLACAS TIPO ESMALTADA EXTRA  DE DIMENSÕES 35X35CM. AF_02/2023","M",77,null,0,0,{"$error":"#DIV/0!"}]
[" 9.4 ",null,null,"COBERTURA",{"$nulls":4},{"$f":"SUM(I279:I284)","v":0},{"$error":"#DIV/0!"}]
[" 9.4.1 "," 97647 ","SINAPI","REMOÇÃO DE TELHAS, DE FIBROCIMENTO, METÁLICA E CERÂMICA, DE FORMA MANUAL, SEM REAPROVEITAMENTO. AF_12/2017","m²",207.58,null,0,0,{"$error":"#DIV/0!"}]
[" 9.4.2 "," 97113 ","SINAPI","APLICAÇÃO DE LONA PLÁSTICA PARA EXECUÇÃO DE PAVIMENTOS DE CONCRETO. AF_04/2022","m²",207.58,null,0,0,{"$error":"#DIV/0!"}]
[" 9.4.3 "," 94440 ","SINAPI","TELHAMENTO COM TELHA CERÂMICA DE ENCAIXE, TIPO FRANCESA, COM ATÉ 2 ÁGUAS, INCLUSO TRANSPORTE VERTICAL. AF_07/2019","m²",207.58,null,0,0,{"$error":"#DIV/0!"}]
[" 9.4.4 "," 94227 ","SINAPI","CALHA EM CHAPA DE AÇO GALVANIZADO NÚMERO 24, DESENVOLVIMENTO DE 33 CM, INCLUSO TRANSPORTE VERTICAL. AF_07/2019","M",31.6,null,0,0,{"$error":"#DIV/0!"}]
[" 9.4.5 "," 93203 ","SINAPI","FIXAÇÃO (ENCUNHAMENTO) DE ALVENARIA DE VEDAÇÃO COM ESPUMA DE POLIURETANO EXPANSIVA. AF_03/2016","M",51.8,null,0,0,{"$error":"#DIV/0!"}]
[" 9.4.6 "," 96486 ","SINAPI","FORRO DE PVC, LISO, PARA AMBIENTES COMERCIAIS, INCLUSIVE ESTRUTURA DE FIXAÇÃO. AF_05/2017_PS","m²",156.9,null,0,0,{"$error":"#DIV/0!"}]
[" 9.5 ",null,null,"JANELA E LOUÇAS",{"$nulls":4},{"$f":"SUM(I286:I290)","v":0},{"$error":"#DIV/0!"}]
[" 9.5.1 "," 100669 ","SINAPI","JANELA DE MADEIRA (PINUS/EUCALIPTO OU EQUIV.) TIPO BASCULANTE COM 2 FOLHAS PARA VIDRO, COM BATENTE, ALIZAR E FERRAGENS. EXCLUSIVE VIDROS, ACABAMENTO E CONTRAMARCO. FORNECIMENTO E INSTALAÇÃO. AF_12/2019","m²",1,null,0,0,{"$error":"#DIV/0!"}]
[" 9.5.2 "," 86931 ","SINAPI","VASO SANITÁRIO SIFONADO COM CAIXA ACOPLADA LOUÇA BRANCA, INCLUSO ENGATE FLEXÍVEL EM PLÁSTICO BRANCO, 1/2  X 40CM - FORNECIMENTO E INSTALAÇÃO. AF_01/2020","UN",2,null,0,0,{"$error":"#DIV/0!"}]
[" 9.5.3 "," 100849 ","SINAPI","ASSENTO SANITÁRIO CONVENCIONAL - FORNECIMENTO E INSTALACAO. AF_01/2020","UN",2,null,0,0,{"$error":"#DIV/0!"}]
[" 9.5.4 "," 95546 ","SINAPI","KIT DE ACESSORIOS PARA BANHEIRO EM METAL CROMADO, 5 PECAS, INCLUSO FIXAÇÃO. AF_01/2020","UN",2,null,0,0,{"$error":"#DIV/0!"}]
[" 9.5.5 "," 86942 ","SINAPI","LAVATÓRIO LOUÇA BRANCA SUSPENSO, 29,5 X 39CM OU EQUIVALENTE, PADRÃO POPULAR, INCLUSO SIFÃO TIPO GARRAFA EM PVC, VÁLVULA E ENGATE FLEXÍVEL 30CM EM PLÁSTICO E TORNEIRA CROMADA DE MESA, PADRÃO POPULAR - FORNECIMENTO E INSTALAÇÃO. AF_01/2020","UN",2,null,0,0,{"$error":"#DIV/0!"}]
[" 9.6 ",null,null,"INSTALAÇÕES ELÉTRICAS",{"$nulls":4},{"$f":"SUM(I292:I296)","v":0},{"$error":"#DIV/0!"}]
[" 9.6.1 "," 91924 ","SINAPI","CABO DE COBRE FLEXÍVEL ISOLADO, 1,5 MM², ANTI-CHAMA 450/750 V, PARA CIRCUITOS TERMINAIS - FORNECIMENTO E INSTALAÇÃO. AF_03/2023","M",200,null,0,0,{"$error":"#DIV/0!"}]
[" 9.6.2 "," 91926 ","SINAPI","CABO DE COBRE FLEXÍVEL ISOLADO, 2,5 MM², ANTI-CHAMA 450/750 V, PARA CIRCUITOS TERMINAIS - FORNECIMENTO E INSTALAÇÃO. AF_03/2023","M",100,null,0,0,{"$error":"#DIV/0!"}]
[" 9.6.3 "," 91928 ","SINAPI","CABO DE COBRE FLEXÍVEL ISOLADO, 4 MM², ANTI-CHAMA 450/750 V, PARA CIRCUITOS TERMINAIS - FORNECIMENTO E INSTALAÇÃO. AF_03/2023","M",180,null,0,0,{"$error":"#DIV/0!"}]
[" 9.6.4 "," 95805 ","SINAPI","CONDULETE DE PVC, TIPO B, PARA ELETRODUTO DE PVC SOLDÁVEL DN 25 MM (3/4''), APARENTE - FORNECIMENTO E INSTALAÇÃO. AF_10/2022","UN",100,null,0,0,{"$error":"#DIV/0!"}]
[" 9.6.5 "," 100902 ","SINAPI","LÂMPADA TUBULAR LED DE 9/10 W, BASE G13 - FORNECIMENTO E INSTALAÇÃO. AF_02/2020_PS","UN",16,null,0,0,{"$error":"#DIV/0!"}]
[" 9.7 ",null,null,"INSTALAÇÕES HIDRÁULICAS / SANITÁRIO",{"$nulls":4},{"$f":"SUM(I298:I307)","v":0},{"$error":"#DIV/0!"}]
[" 9.7.1 "," 4883 ","ORSE","Caixa de inspeção  0.60 x 0.60 x 0.60m","un",3,null,0,0,{"$error":"#DIV/0!"}]
[" 9.7.2 "," 6388 ","ORSE","*Caixa de passagem cp2-100  (60x60x100cm)","un",3,null,0,0,{"$error":"#DIV/0!"}]
[" 9.7.3 "," 10319 ","ORSE","Fossa séptica em alvenaria bloco de cimento e concreto armado, dimensões internas 1,20 x 2,40 x 1,20 m","un",1,null,0,0,{"$error":"#DIV/0!"}]
[" 9.7.4 "," 00036365 ","SINAPI","TUBO COLETOR DE ESGOTO PVC, JEI, DN 100 MM (NBR  7362)","M",205,null,{"$f":"TRUNC(G301*(1+$H$2),2)","v":0},0,{"$error":"#DIV/0!"}]
[" 9.7.5 "," 00003893 ","SINAPI","LUVA DE CORRER, PVC, DN 100 MM, PARA ESGOTO PREDIAL","UN",8,null,0,0,{"$error":"#DIV/0!"}]
[" 9.7.6 "," 00038423 ","SINAPI","CURVA DE PVC, 90 GRAUS, SERIE R, DN 100 MM, PARA ESGOTO PREDIAL","UN",5,null,0,0,{"$error":"#DIV/0!"}]
[" 9.7.7 "," 5212 ","ORSE","Fornecimento de tê 90º de pvc, junta elástica, com bolsas, diam. =  100mm","un",4,null,{"$f":"TRUNC(G304*(1+$G$2),2)","v":0},0,{"$error":"#DIV/0!"}]
[" 9.7.8 "," 00003520 ","SINAPI","JOELHO PVC, SOLDAVEL, PB, 90 GRAUS, DN 100 MM, PARA ESGOTO PREDIAL","UN",4,null,0,0,{"$error":"#DIV/0!"}]
[" 9.7.9 "," 2661 ","ORSE","Assentamento de tubo de pvc junta elástica para esgotos sanitários, ponta e bolsa, diam. = 100mm","m",205,null,0,0,{"$error":"#DIV/0!"}]
[" 9.7.10 "," 1 ","Próprio","ADEQUAÇÃO DO PROJETO HIDROSSANITARIO","un",1,null,0,0,{"$error":"#DIV/0!"}]
[" 9.8 ",null,null,"PINTURA",{"$nulls":4},{"$f":"SUM(I309:I311)","v":0},{"$error":"#DIV/0!"}]
[" 9.8.1 "," 88497 ","SINAPI","EMASSAMENTO COM MASSA LÁTEX, APLICAÇÃO EM PAREDE, DUAS DEMÃOS, LIXAMENTO MANUAL. AF_04/2023","m²",381.62,null,0,0,{"$error":"#DIV/0!"}]
[" 9.8.2 "," 88489 ","SINAPI","PINTURA LÁTEX ACRÍLICA PREMIUM, APLICAÇÃO MANUAL EM PAREDES, DUAS DEMÃOS. AF_04/2023","m²",381.62,null,0,0,{"$error":"#DIV/0!"}]
[" 9.8.3 "," 88423 ","SINAPI","APLICAÇÃO MANUAL DE PINTURA COM TINTA TEXTURIZADA ACRÍLICA EM PAREDES EXTERNAS DE CASAS, UMA COR. AF_06/2014","m²",381.62,null,0,0,{"$error":"#DIV/0!"}]
[" 9.9 ",null,null,"INSTALAÇÃO DE PROTEÇÃO E COMBATE A INCÊNDIO",{"$nulls":4},{"$f":"SUM(I313:I316)","v":0},{"$error":"#DIV/0!"}]
[" 9.9.1 "," 101905 ","SINAPI","EXTINTOR DE INCÊNDIO PORTÁTIL COM CARGA DE ÁGUA PRESSURIZADA DE 10 L, CLASSE A - FORNECIMENTO E INSTALAÇÃO. AF_10/2020_PE","UN",1,null,0,0,{"$error":"#DIV/0!"}]
[" 9.9.2 "," 101909 ","SINAPI","EXTINTOR DE INCÊNDIO PORTÁTIL COM CARGA DE PQS DE 6 KG, CLASSE BC - FORNECIMENTO E INSTALAÇÃO. AF_10/2020_PE","UN",1,null,0,0,{"$error":"#DIV/0!"}]
[" 9.9.3 "," 12888 ","ORSE","Placa de sinalizacao, fotoluminescente, em pvc , com logotipo \"Extintor de incêndio portátil\"- Placa E5","un",2,null,0,0,{"$error":"#DIV/0!"}]
[" 9.9.4 "," 12895 ","ORSE","Placa de sinalizacao, fotoluminescente, em pvc , rota de fuga","un",2,null,0,0,{"$error":"#DIV/0!"}]
[" 9.10 ",null,null,"LIMPEZA",{"$nulls":4},{"$f":"SUM(I318)","v":0},{"$error":"#DIV/0!"}]
[" 9.10.1 "," 2450 ","ORSE","Limpeza geral","m²",207.52,null,0,0,{"$error":"#DIV/0!"}]
[" 10 ",null,null,"REFORMA DOS TANQUES DO PRÉDIO PRINCIPAL",{"$nulls":4},{"$f":"SUM(I320,I331,I357,I364,I373,I387)","v":0},{"$error":"#DIV/0!"}]
[" 10.1 ",null,null,"TANQUES",{"$nulls":4},{"$f":"SUM(I321:I330)","v":0},{"$error":"#DIV/0!"}]
[" 10.1.1 "," 97634 ","SINAPI","DEMOLIÇÃO DE REVESTIMENTO CERÂMICO, DE FORMA MECANIZADA COM MARTELETE, SEM REAPROVEITAMENTO. AF_12/2017","m²",187.8,null,{"$f":"TRUNC(G321*(1+$G$2),2)","v":0},{"$f":"TRUNC(F321*H321,2)","v":0},{"$error":"#DIV/0!"}]
[" 10.1.2 "," 3638 ","ORSE","Fornecimento e instalação de tela aço soldada nervurada CA-60, Q-196, malha 10x10cm, ferro 5.0mm (3,11 kg/m2), painel 2,45x6,0m, Telcon ou similar","m²",187.8,null,0,0,{"$error":"#DIV/0!"}]
[" 10.1.3 "," 94966 ","SINAPI","CONCRETO FCK = 30MPA, TRAÇO 1:2,1:2,5 (EM MASSA SECA DE CIMENTO/ AREIA MÉDIA/ BRITA 1) - PREPARO MECÂNICO COM BETONEIRA 400 L. AF_05/2021","m³",5.6340000000000003,null,0,0,{"$error":"#DIV/0!"}]
[" 10.1.4 "," 98546 ","SINAPI","IMPERMEABILIZAÇÃO DE SUPERFÍCIE COM MANTA ASFÁLTICA, UMA CAMADA, INCLUSIVE APLICAÇÃO DE PRIMER ASFÁLTICO, E=3MM. AF_06/2018","m²",187.8,null,0,0,{"$error":"#DIV/0!"}]
[" 10.1.5 "," 98565 ","SINAPI","PROTEÇÃO MECÂNICA DE SUPERFICIE HORIZONTAL COM ARGAMASSA DE CIMENTO E AREIA, TRAÇO 1:3, E=3CM. AF_06/2018","m²",187.8,null,0,0,{"$error":"#DIV/0!"}]
[" 10.1.6 "," GRR-03 ","Próprio","SHER-TILE CLEAR HS BR INCOLOR - COMP A","un",4,null,{"$f":"TRUNC(G326*(1+$H$2),2)","v":0},0,{"$error":"#DIV/0!"}]
[" 10.1.7 "," GRR-04 ","Próprio","SHER-TILE CLEAR HS BR INCOLOR COMP. B","un",4,null,0,0,{"$error":"#DIV/0!"}]
[" 10.1.8 "," GRR-05 ","Próprio","SUMASTIC AWWA AZUL PISCINA COMP A","un",10,null,0,0,{"$f":"I328/$H$435","v":{"$error":"#DIV/0!"}}]
[" 10.1.9 "," GRR-06 ","Próprio","SUMASTIC AWWA COMP B","un",10,null,0,0,{"$error":"#DIV/0!"}]
[" 10.1.10 "," GRR-07 ","Próprio","DILUENTE NR. 908","un",2,null,0,0,{"$error":"#DIV/0!"}]
[" 10.2 ",null,null,"ABASTECIMENTO",{"$nulls":4},{"$f":"SUM(I332:I356)","v":0},{"$error":"#DIV/0!"}]
[" 10.2.1 "," 6980 ","ORSE","Fornecimento de registro gaveta fofo, c/ flanges, cunha borracha, corpo curto e cabeçote, tipo euro 23,  pn16, diam  = 150mm","un",1,null,{"$f":"TRUNC(G332*(1+$G$2),2)","v":0},0,{"$error":"#DIV/0!"}]
[" 10.2.2 "," 104173 ","SINAPI","REDUÇÃO EXCÊNTRICA, PVC, SERIE R, ÁGUA PLUVIAL, DN 150 X 100 MM, JUNTA ELÁSTICA, FORNECIDO E INSTALADO EM RAMAL DE ENCAMINHAMENTO. AF_06/2022","UN",1,null,0,0,{"$error":"#DIV/0!"}]
[" 10.2.3 "," 00009828 ","SINAPI","TUBO PVC DEFOFO, JEI, 1 MPA, DN 150 MM, PARA REDE DE  AGUA (NBR 7665)","M",56,null,{"$f":"TRUNC(G334*(1+$H$2),2)","v":0},0,{"$error":"#DIV/0!"}]
[" 10.2.4 "," 97127 ","SINAPI","ASSENTAMENTO DE TUBO DE PVC DEFOFO OU PRFV OU RPVC PARA REDE DE ÁGUA, DN 150 MM, JUNTA ELÁSTICA INTEGRADA, INSTALADO EM LOCAL COM NÍVEL ALTO DE INTERFERÊNCIAS (NÃO INCLUI FORNECIMENTO). AF_11/2017","M",56,null,0,0,{"$error":"#DIV/0!"}]
[" 10.2.5 "," 00009825 ","SINAPI","TUBO PVC DEFOFO, JEI, 1 MPA, DN 100 MM, PARA REDE DE AGUA (NBR 7665)","M",61,null,0,0,{"$error":"#DIV/0!"}]
[" 10.2.6 "," 97123 ","SINAPI","ASSENTAMENTO DE TUBO DE PVC PBA PARA REDE DE ÁGUA, DN 100 MM, JUNTA ELÁSTICA INTEGRADA, INSTALADO EM LOCAL COM NÍVEL ALTO DE INTERFERÊNCIAS (NÃO INCLUI FORNECIMENTO). AF_11/2017","M",61,null,0,0,{"$error":"#DIV/0!"}]
[" 10.2.7 "," 00036375 ","SINAPI","TUBO PVC PBA JEI, CLASSE 15, DN 50 MM, PARA REDE DE AGUA (NBR 5647)","M",15,null,0,0,{"$error":"#DIV/0!"}]
[" 10.2.8 "," 97124 ","SINAPI","ASSENTAMENTO DE TUBO DE PVC PBA PARA REDE DE ÁGUA, DN 50 MM, JUNTA ELÁSTICA INTEGRADA, INSTALADO EM LOCAL COM NÍVEL BAIXO DE INTERFERÊNCIAS (NÃO INCLUI FORNECIMENTO). AF_11/2017","M",15,null,0,0,{"$error":"#DIV/0!"}]
[" 10.2.9 "," 89402 ","SINAPI","TUBO, PVC, SOLDÁVEL, DN 25MM, INSTALADO EM RAMAL DE DISTRIBUIÇÃO DE ÁGUA - FORNECIMENTO E INSTALAÇÃO. AF_06/2022","M",34,null,0,0,{"$error":"#DIV/0!"}]
[" 10.2.10 "," 00006027 ","SINAPI","REGISTRO GAVETA BRUTO EM LATAO FORJADO, BITOLA 4 \" (REF 1509)","UN",2,null,{"$f":"TRUNC(G341*(1+$H$2),2)","v":0},0,{"$error":"#DIV/0!"}]
[" 10.2.11 "," 00011677 ","SINAPI","REGISTRO DE ESFERA, PVC, COM VOLANTE, VS, SOLDAVEL, DN 50 MM, COM CORPO DIVIDIDO","UN",14,null,0,0,{"$error":"#DIV/0!"}]
[" 10.2.12 "," 00011674 ","SINAPI","REGISTRO DE ESFERA, PVC, COM VOLANTE, VS, SOLDAVEL, DN 25 MM, COM CORPO DIVIDIDO","UN",10,null,0,0,{"$error":"#DIV/0!"}]
[" 10.2.13 "," 00011321 ","SINAPI","REDUCAO PVC PBA, JE, PB, DN 100 X 50 / DE 110 X 60 MM, PARA REDE DE AGUA","UN",2,null,0,0,{"$error":"#DIV/0!"}]
[" 10.2.14 "," 358 ","ORSE","Eletroduto de pvc rígido roscável, diâm = 75mm (2 1/2\")","m",10,null,{"$f":"TRUNC(G345*(1+$G$2),2)","v":0},0,{"$error":"#DIV/0!"}]
[" 10.2.15 "," 00011378 ","SINAPI","TE DE REDUCAO, PVC PBA, BBB, JE, DN 100 X 50 / DE 110 X 60 MM, PARA REDE AGUA (NBR 10351)","UN",14,null,0,0,{"$error":"#DIV/0!"}]
[" 10.2.16 "," 9504 ","ORSE","Chuveiro elétrico jet master (lorenzetti  ou similar)","un",10,null,0,0,{"$error":"#DIV/0!"}]
[" 10.2.17 "," 104175 ","SINAPI","TÊ, PVC, SERIE R, ÁGUA PLUVIAL, DN 150 X 100 MM, JUNTA ELÁSTICA, FORNECIDO E INSTALADO EM RAMAL DE ENCAMINHAMENTO. AF_06/2022","UN",1,null,0,0,{"$error":"#DIV/0!"}]
[" 10.2.18 "," 89529 ","SINAPI","JOELHO 90 GRAUS, PVC, SERIE R, ÁGUA PLUVIAL, DN 100 MM, JUNTA ELÁSTICA, FORNECIDO E INSTALADO EM RAMAL DE ENCAMINHAMENTO. AF_06/2022","UN",2,null,0,0,{"$error":"#DIV/0!"}]
[" 10.2.19 "," 1212 ","ORSE","Anel de borracha para tubo pvc sanitario d = 100mm","un",10,null,0,0,{"$error":"#DIV/0!"}]
[" 10.2.20 "," 4883 ","ORSE","Caixa de inspeção  0.60 x 0.60 x 0.60m","un",2,null,0,0,{"$error":"#DIV/0!"}]
[" 10.2.21 "," 12817 ","ORSE","Poço de inspeção em PEAD 600x1000mm DN 150/200mm, exclusive tampa de concreto e do tampão de ferro fundido - Rev 01","un",1,null,0,0,{"$error":"#DIV/0!"}]
[" 10.2.22 "," 794 ","ORSE","Tomada para lógica, rj45, com caixa sobrepor, aparente","un",1,null,0,0,{"$error":"#DIV/0!"}]
[" 10.2.23 "," 809 ","ORSE","Fornecimento e instalação de ventilador de teto, 04 palhetas","un",1,null,0,0,{"$error":"#DIV/0!"}]
[" 10.2.24 "," 00003838 ","SINAPI","LUVA DE CORRER DEFOFO, PVC, JE, DN 150 MM","UN",2,null,{"$f":"TRUNC(G355*(1+$H$2),2)","v":0},0,{"$error":"#DIV/0!"}]
[" 10.2.25 "," 00003840 ","SINAPI","LUVA DE CORRER DEFOFO, PVC, JE, DN 100 MM","UN",1,null,0,0,{"$error":"#DIV/0!"}]
[" 10.3 ",null,null,"ALVENARIA",{"$nulls":4},{"$f":"SUM(I358:I363)","v":0},{"$error":"#DIV/0!"}]
[" 10.3.1 "," 97629 ","SINAPI","DEMOLIÇÃO DE LAJES, DE FORMA MECANIZADA COM MARTELETE, SEM REAPROVEITAMENTO. AF_12/2017","m³",131.30000000000001,null,{"$f":"TRUNC(G358*(1+$G$2),2)","v":0},0,{"$error":"#DIV/0!"}]
[" 10.3.2 "," 89472 ","SINAPI","ALVENARIA DE BLOCOS DE CONCRETO ESTRUTURAL 14X19X39 CM (ESPESSURA 14 CM), FBK = 14 MPA, UTILIZANDO COLHER DE PEDREIRO. AF_10/2022","m²",12,null,0,0,{"$error":"#DIV/0!"}]
[" 10.3.3 "," 93382 ","SINAPI","REATERRO MANUAL DE VALAS COM COMPACTAÇÃO MECANIZADA. AF_04/2016","m³",2.38,null,0,0,{"$error":"#DIV/0!"}]
[" 10.3.4 "," 153 ","ORSE","Alvenaria bloco cerâmico vedação, 9x19x24cm, e=19cm, com argamassa t5 - 1:2:8 (cimento/cal/areia), junta=1cm - Rev.08","m²",212.4,null,0,0,{"$error":"#DIV/0!"}]
[" 10.3.5 "," 94966 ","SINAPI","CONCRETO FCK = 30MPA, TRAÇO 1:2,1:2,5 (EM MASSA SECA DE CIMENTO/ AREIA MÉDIA/ BRITA 1) - PREPARO MECÂNICO COM BETONEIRA 400 L. AF_05/2021","m³",1.04,null,0,0,{"$error":"#DIV/0!"}]
[" 10.3.6 "," 2636 ","ORSE","Tampa de inspeção em chapa xadrez 3/16\" - 1,25x1,25m, inclusive pintura epoxi - Rev. 02","un",48,null,0,0,{"$error":"#DIV/0!"}]
[" 10.4 ",null,null,"DRENAGEM",{"$nulls":4},{"$f":"SUM(I365:I372)","v":0},{"$error":"#DIV/0!"}]
[" 10.4.1 "," 9296 ","ORSE","Calha de concreto e alvenaria, revestida internamente, impermeabilizada, seção 0,50 x 0,20m.  Rev 01","m",50.5,null,0,0,{"$error":"#DIV/0!"}]
[" 10.4.2 "," 5888 ","ORSE","Tubo pvc p/rede colet.esgoto, JEI, d= 200mm (Vinilfort - Tigre ou similar) m","m",35,null,{"$f":"TRUNC(G366*(1+$H$2),2)","v":0},0,{"$error":"#DIV/0!"}]
[" 10.4.3 "," 97128 ","SINAPI","ASSENTAMENTO DE TUBO DE PVC DEFOFO OU PRFV OU RPVC PARA REDE DE ÁGUA, DN 200 MM, JUNTA ELÁSTICA INTEGRADA, INSTALADO EM LOCAL COM NÍVEL ALTO DE INTERFERÊNCIAS (NÃO INCLUI FORNECIMENTO). AF_11/2017","M",35,null,0,0,{"$error":"#DIV/0!"}]
[" 10.4.4 "," 10451 ","ORSE","Luva de correr em pvc rígido soldável, para esgoto primário, diâm = 200mm","un",4,null,0,0,{"$error":"#DIV/0!"}]
[" 10.4.5 "," 1116 ","ORSE","Curva 90º de pvc rígido soldável, marrom  diâm = 20mm","un",2,null,0,0,{"$error":"#DIV/0!"}]
[" 10.4.6 "," 00003520 ","SINAPI","JOELHO PVC, SOLDAVEL, PB, 90 GRAUS, DN 100 MM, PARA ESGOTO PREDIAL","UN",28,null,{"$f":"TRUNC(G370*(1+$H$2),2)","v":0},0,{"$error":"#DIV/0!"}]
[" 10.4.7 "," 00009836 ","SINAPI","TUBO PVC  SERIE NORMAL, DN 100 MM, PARA ESGOTO  PREDIAL (NBR 5688)","M",96,null,0,0,{"$error":"#DIV/0!"}]
[" 10.4.8 "," 96620 ","SINAPI","LASTRO DE CONCRETO MAGRO, APLICADO EM PISOS, LAJES SOBRE SOLO OU RADIERS. AF_08/2017","m³",1.51,null,{"$f":"TRUNC(G372*(1+$G$2),2)","v":0},0,{"$error":"#DIV/0!"}]
[" 10.5 ",null,null,"RESERVATORIO SUPERIOR",{"$nulls":4},{"$f":"SUM(I374:I386)","v":0},{"$error":"#DIV/0!"}]
[" 10.5.1 "," 00009825 ","SINAPI","TUBO PVC DEFOFO, JEI, 1 MPA, DN 100 MM, PARA REDE DE AGUA (NBR 7665)","M",9,null,{"$f":"TRUNC(G374*(1+$H$2),2)","v":0},0,{"$error":"#DIV/0!"}]
[" 10.5.2 "," 5364 ","ORSE","Assentamento de tubos de pvc defofo, junta elástica integrada, pn 1mpa, diam.=  100 mm","m",9,null,{"$f":"TRUNC(G375*(1+$G$2),2)","v":0},0,{"$error":"#DIV/0!"}]
[" 10.5.3 "," 2336 ","ORSE","Limpeza com lixadeira elétrica, tratamento do concreto e lixamento com lixa carbureto silicio","m²",58.5,null,0,0,{"$error":"#DIV/0!"}]
[" 10.5.4 "," 89529 ","SINAPI","JOELHO 90 GRAUS, PVC, SERIE R, ÁGUA PLUVIAL, DN 100 MM, JUNTA ELÁSTICA, FORNECIDO E INSTALADO EM RAMAL DE ENCAMINHAMENTO. AF_06/2022","UN",2,null,0,0,{"$error":"#DIV/0!"}]
[" 10.5.5 "," 00000075 ","SINAPI","ADAPTADOR PVC SOLDAVEL, COM FLANGES LIVRES, 110 MM X 4\", PARA CAIXA D' AGUA","UN",1,null,{"$f":"TRUNC(G378*(1+$H$2),2)","v":0},0,{"$error":"#DIV/0!"}]
[" 10.5.6 "," 00003840 ","SINAPI","LUVA DE CORRER DEFOFO, PVC, JE, DN 100 MM","UN",1,null,0,0,{"$error":"#DIV/0!"}]
[" 10.5.7 "," 00011321 ","SINAPI","REDUCAO PVC PBA, JE, PB, DN 100 X 50 / DE 110 X 60 MM, PARA REDE DE AGUA","UN",1,null,0,0,{"$error":"#DIV/0!"}]
[" 10.5.8 "," 98565 ","SINAPI","PROTEÇÃO MECÂNICA DE SUPERFICIE HORIZONTAL COM ARGAMASSA DE CIMENTO E AREIA, TRAÇO 1:3, E=3CM. AF_06/2018","m²",58.5,null,{"$f":"TRUNC(G381*(1+$G$2),2)","v":0},0,{"$error":"#DIV/0!"}]
[" 10.5.9 "," 98546 ","SINAPI","IMPERMEABILIZAÇÃO DE SUPERFÍCIE COM MANTA ASFÁLTICA, UMA CAMADA, INCLUSIVE APLICAÇÃO DE PRIMER ASFÁLTICO, E=3MM. AF_06/2018","m²",58.5,null,0,0,{"$error":"#DIV/0!"}]
[" 10.5.10 "," 4917 ","ORSE","Preparo de substrato por escarificação mecânica (corte de concreto) para espessuras de até 3,0cm","m²",0.87,null,0,0,{"$error":"#DIV/0!"}]
[" 10.5.11 "," 4521 ","ORSE","Remoção de ferrugem em esquadrias ou estruturas metálicas com escova de aço","m²",29.25,null,0,0,{"$error":"#DIV/0!"}]
[" 10.5.12 "," 100722 ","SINAPI","PINTURA COM TINTA ALQUÍDICA DE FUNDO (TIPO ZARCÃO) APLICADA A ROLO OU PINCEL SOBRE SUPERFÍCIES METÁLICAS (EXCETO PERFIL) EXECUTADO EM OBRA (POR DEMÃO). AF_01/2020","m²",58.5,null,0,{"$f":"TRUNC(F385*H385,2)","v":0},{"$error":"#DIV/0!"}]
[" 10.5.13 "," 95622 ","SINAPI","APLICAÇÃO MANUAL DE TINTA LÁTEX ACRÍLICA EM PANOS COM PRESENÇA DE VÃOS DE EDIFÍCIOS DE MÚLTIPLOS PAVIMENTOS, DUAS DEMÃOS. AF_11/2016","m²",58.5,null,0,0,{"$error":"#DIV/0!"}]
[" 10.6 ",null,null,"LIMPEZA",{"$nulls":4},{"$f":"SUM(I388)","v":0},{"$error":"#DIV/0!"}]
[" 10.6.1 "," 2450 ","ORSE","Limpeza geral","m²",286.89999999999998,null,0,0,{"$error":"#DIV/0!"}]
[" 11 ",null,null,"REFORMA DO GALPÃO CRIADORES",{"$nulls":4},{"$f":"SUM(I390,I398,I402,I410,I414,I421,I427,I430)","v":0},{"$error":"#DIV/0!"}]
[" 11.1 ",null,null,"TANQUES",{"$nulls":4},{"$f":"SUM(I391:I397)","v":0},{"$error":"#DIV/0!"}]
[" 11.1.1 "," 2336 ","ORSE","Limpeza com lixadeira elétrica, tratamento do concreto e lixamento com lixa carbureto silicio","m²",292.32,null,{"$f":"TRUNC(G391*(1+$G$2),2)","v":0},{"$f":"TRUNC(F391*H391,2)","v":0},{"$error":"#DIV/0!"}]
[" 11.1.2 "," 3638 ","ORSE","Fornecimento e instalação de tela aço soldada nervurada CA-60, Q-196, malha 10x10cm, ferro 5.0mm (3,11 kg/m2), painel 2,45x6,0m, Telcon ou similar","m²",292.32,null,0,0,{"$f":"I392/$H$435","v":{"$error":"#DIV/0!"}}]
[" 11.1.3 "," 94966 ","SINAPI","CONCRETO FCK = 30MPA, TRAÇO 1:2,1:2,5 (EM MASSA SECA DE CIMENTO/ AREIA MÉDIA/ BRITA 1) - PREPARO MECÂNICO COM BETONEIRA 400 L. AF_05/2021","m³",11.6928,null,0,0,{"$error":"#DIV/0!"}]
[" 11.1.4 "," 98546 ","SINAPI","IMPERMEABILIZAÇÃO DE SUPERFÍCIE COM MANTA ASFÁLTICA, UMA CAMADA, INCLUSIVE APLICAÇÃO DE PRIMER ASFÁLTICO, E=3MM. AF_06/2018","m²",292.32,null,0,0,{"$error":"#DIV/0!"}]
[" 11.1.5 "," 98565 ","SINAPI","PROTEÇÃO MECÂNICA DE SUPERFICIE HORIZONTAL COM ARGAMASSA DE CIMENTO E AREIA, TRAÇO 1:3, E=3CM. AF_06/2018","m²",292.32,null,0,0,{"$error":"#DIV/0!"}]
[" 11.1.6 "," 88497 ","SINAPI","EMASSAMENTO COM MASSA LÁTEX, APLICAÇÃO EM PAREDE, DUAS DEMÃOS, LIXAMENTO MANUAL. AF_04/2023","m²",167.67,null,0,0,{"$error":"#DIV/0!"}]
[" 11.1.7 "," 88421 ","SINAPI","APLICAÇÃO MANUAL DE PINTURA COM TINTA TEXTURIZADA ACRÍLICA EM SUPERFÍCIES INTERNAS DA SACADA DE EDIFÍCIOS DE MÚLTIPLOS PAVIMENTOS, UMA COR. AF_06/2014","m²",150.30000000000001,null,0,0,{"$error":"#DIV/0!"}]
[" 11.2 ",null,null,"PISO (CALÇADA)",{"$nulls":4},{"$f":"SUM(I399:I401)","v":0},{"$error":"#DIV/0!"}]
[" 11.2.1 "," 9182 ","ORSE","Demolição de concreto com martelete e compressor","m³",8.68,null,0,0,{"$error":"#DIV/0!"}]
[" 11.2.2 "," 94994 ","SINAPI","EXECUÇÃO DE PASSEIO (CALÇADA) OU PISO DE CONCRETO COM CONCRETO MOLDADO IN LOCO, FEITO EM OBRA, ACABAMENTO CONVENCIONAL, ESPESSURA 8 CM, ARMADO. AF_08/2022","m²",8.68,null,0,0,{"$error":"#DIV/0!"}]
[" 11.2.3 "," 8229 ","ORSE","Grelha de ferro, Larg=32cm, em vergalhões 5/8\", espaçamento=4cm, com requadro em barra chata ferro 2\"x5/16\"","m",55,null,0,0,{"$error":"#DIV/0!"}]
[" 11.3 ",null,null,"COBERTURA",{"$nulls":4},{"$f":"SUM(I403:I409)","v":0},{"$error":"#DIV/0!"}]
[" 11.3.1 "," 97647 ","SINAPI","REMOÇÃO DE TELHAS, DE FIBROCIMENTO, METÁLICA E CERÂMICA, DE FORMA MANUAL, SEM REAPROVEITAMENTO. AF_12/2017","m²",720,null,0,0,{"$error":"#DIV/0!"}]
[" 11.3.2 "," 92539 ","SINAPI","TRAMA DE MADEIRA COMPOSTA POR RIPAS, CAIBROS E TERÇAS PARA TELHADOS DE ATÉ 2 ÁGUAS PARA TELHA DE ENCAIXE DE CERÂMICA OU DE CONCRETO, INCLUSO TRANSPORTE VERTICAL. AF_07/2019","m²",300,null,0,0,{"$error":"#DIV/0!"}]
[" 11.3.3 "," 97113 ","SINAPI","APLICAÇÃO DE LONA PLÁSTICA PARA EXECUÇÃO DE PAVIMENTOS DE CONCRETO. AF_04/2022","m²",720,null,0,0,{"$error":"#DIV/0!"}]
[" 11.3.4 "," 94440 ","SINAPI","TELHAMENTO COM TELHA CERÂMICA DE ENCAIXE, TIPO FRANCESA, COM ATÉ 2 ÁGUAS, INCLUSO TRANSPORTE VERTICAL. AF_07/2019","m²",720,null,0,0,{"$error":"#DIV/0!"}]
[" 11.3.5 "," 94227 ","SINAPI","CALHA EM CHAPA DE AÇO GALVANIZADO NÚMERO 24, DESENVOLVIMENTO DE 33 CM, INCLUSO TRANSPORTE VERTICAL. AF_07/2019","M",123.4,null,0,0,{"$error":"#DIV/0!"}]
[" 11.3.6 "," 93203 ","SINAPI","FIXAÇÃO (ENCUNHAMENTO) DE ALVENARIA DE VEDAÇÃO COM ESPUMA DE POLIURETANO EXPANSIVA. AF_03/2016","M",150,null,0,0,{"$error":"#DIV/0!"}]
[" 11.3.7 "," 96486 ","SINAPI","FORRO DE PVC, LISO, PARA AMBIENTES COMERCIAIS, INCLUSIVE ESTRUTURA DE FIXAÇÃO. AF_05/2017_PS","m²",672,null,0,0,{"$error":"#DIV/0!"}]
[" 11.4 ",null,null,"REFORÇO DA PAREDE E PILARES",{"$nulls":4},{"$f":"SUM(I411:I413)","v":0},{"$error":"#DIV/0!"}]
[" 11.4.1 "," 4917 ","ORSE","Preparo de substrato por escarificação mecânica (corte de concreto) para espessuras de até 3,0cm","m²",1,null,0,0,{"$error":"#DIV/0!"}]
[" 11.4.2 "," 91603 ","SINAPI","ARMAÇÃO DO SISTEMA DE PAREDES DE CONCRETO, EXECUTADA COMO REFORÇO, VERGALHÃO DE 10,0 MM DE DIÂMETRO. AF_06/2019","KG",7.4,null,0,0,{"$error":"#DIV/0!"}]
[" 11.4.3 "," 94966 ","SINAPI","CONCRETO FCK = 30MPA, TRAÇO 1:2,1:2,5 (EM MASSA SECA DE CIMENTO/ AREIA MÉDIA/ BRITA 1) - PREPARO MECÂNICO COM BETONEIRA 400 L. AF_05/2021","m³",1,null,0,0,{"$error":"#DIV/0!"}]
[" 11.5 ",null,null,"JANELAS, PORTAS E LOUÇAS",{"$nulls":4},{"$f":"SUM(I415:I420)","v":0},{"$error":"#DIV/0!"}]
[" 11.5.1 "," 94559 ","SINAPI","JANELA DE AÇO TIPO BASCULANTE PARA VIDROS, COM BATENTE, FERRAGENS E PINTURA ANTICORROSIVA. EXCLUSIVE VIDROS, ACABAMENTO, ALIZAR E CONTRAMARCO. FORNECIMENTO E INSTALAÇÃO. AF_12/2019","m²",3.9359999999999999,null,0,0,{"$error":"#DIV/0!"}]
[" 11.5.2 "," 100689 ","SINAPI","KIT DE PORTA DE MADEIRA FRISADA, SEMI-OCA (LEVE OU MÉDIA), PADRÃO MÉDIO, 80X210CM, ESPESSURA DE 3,5CM, ITENS INCLUSOS: DOBRADIÇAS, MONTAGEM E INSTALAÇÃO DE BATENTE, FECHADURA COM EXECUÇÃO DO FURO - FORNECIMENTO E INSTALAÇÃO. AF_12/2019","UN",1,null,0,0,{"$error":"#DIV/0!"}]
[" 11.5.3 "," 86931 ","SINAPI","VASO SANITÁRIO SIFONADO COM CAIXA ACOPLADA LOUÇA BRANCA, INCLUSO ENGATE FLEXÍVEL EM PLÁSTICO BRANCO, 1/2  X 40CM - FORNECIMENTO E INSTALAÇÃO. AF_01/2020","UN",4,null,0,0,{"$error":"#DIV/0!"}]
[" 11.5.4 "," 100849 ","SINAPI","ASSENTO SANITÁRIO CONVENCIONAL - FORNECIMENTO E INSTALACAO. AF_01/2020","UN",4,null,0,0,{"$error":"#DIV/0!"}]
[" 11.5.5 "," 95546 ","SINAPI","KIT DE ACESSORIOS PARA BANHEIRO EM METAL CROMADO, 5 PECAS, INCLUSO FIXAÇÃO. AF_01/2020","UN",4,null,0,0,{"$error":"#DIV/0!"}]
[" 11.5.6 "," 86942 ","SINAPI","LAVATÓRIO LOUÇA BRANCA SUSPENSO, 29,5 X 39CM OU EQUIVALENTE, PADRÃO POPULAR, INCLUSO SIFÃO TIPO GARRAFA EM PVC, VÁLVULA E ENGATE FLEXÍVEL 30CM EM PLÁSTICO E TORNEIRA CROMADA DE MESA, PADRÃO POPULAR - FORNECIMENTO E INSTALAÇÃO. AF_01/2020","UN",4,null,0,0,{"$error":"#DIV/0!"}]
[" 11.6 ",null,null,"INSTALAÇÕES ELÉTRICAS",{"$nulls":4},{"$f":"SUM(I422:I426)","v":0},{"$error":"#DIV/0!"}]
[" 11.6.1 "," 91924 ","SINAPI","CABO DE COBRE FLEXÍVEL ISOLADO, 1,5 MM², ANTI-CHAMA 450/750 V, PARA CIRCUITOS TERMINAIS - FORNECIMENTO E INSTALAÇÃO. AF_03/2023","M",250,null,0,0,{"$error":"#DIV/0!"}]
[" 11.6.2 "," 91926 ","SINAPI","CABO DE COBRE FLEXÍVEL ISOLADO, 2,5 MM², ANTI-CHAMA 450/750 V, PARA CIRCUITOS TERMINAIS - FORNECIMENTO E INSTALAÇÃO. AF_03/2023","M",125,null,0,0,{"$error":"#DIV/0!"}]
[" 11.6.3 "," 91928 ","SINAPI","CABO DE COBRE FLEXÍVEL ISOLADO, 4 MM², ANTI-CHAMA 450/750 V, PARA CIRCUITOS TERMINAIS - FORNECIMENTO E INSTALAÇÃO. AF_03/2023","M",170,null,0,0,{"$error":"#DIV/0!"}]
[" 11.6.4 "," 95805 ","SINAPI","CONDULETE DE PVC, TIPO B, PARA ELETRODUTO DE PVC SOLDÁVEL DN 25 MM (3/4''), APARENTE - FORNECIMENTO E INSTALAÇÃO. AF_10/2022","UN",120,null,0,0,{"$error":"#DIV/0!"}]
[" 11.6.5 "," 100902 ","SINAPI","LÂMPADA TUBULAR LED DE 9/10 W, BASE G13 - FORNECIMENTO E INSTALAÇÃO. AF_02/2020_PS","UN",1,null,0,0,{"$error":"#DIV/0!"}]
[" 11.7 ",null,null,"PINTURA",{"$nulls":4},{"$f":"SUM(I428:I429)","v":0},{"$error":"#DIV/0!"}]
[" 11.7.1 "," 88497 ","SINAPI","EMASSAMENTO COM MASSA LÁTEX, APLICAÇÃO EM PAREDE, DUAS DEMÃOS, LIXAMENTO MANUAL. AF_04/2023","m²",651.61,null,0,0,{"$error":"#DIV/0!"}]
[" 11.7.2 "," 88423 ","SINAPI","APLICAÇÃO MANUAL DE PINTURA COM TINTA TEXTURIZADA ACRÍLICA EM PAREDES EXTERNAS DE CASAS, UMA COR. AF_06/2014","m²",266.39,null,0,0,{"$error":"#DIV/0!"}]
[" 11.8 ",null,null,"LIMPEZA",{"$nulls":4},{"$f":"SUM(I431)","v":0},{"$error":"#DIV/0!"}]
[" 11.8.1 "," 2450 ","ORSE","Limpeza geral","m²",487.43,null,0,0,{"$error":"#DIV/0!"}]
[]
[{"$nulls":5},"Total sem BDI",null,0]
[{"$nulls":5},"Total do BDI",null,{"$f":"H435-H433","v":0}]
[{"$nulls":5},"Total Geral",null,{"$f":"SUM(I6,I13,I22,I188,I210,I240,I246,I252,I263,I319,I389)","v":0}]